Organisation Name (A),Department (B),Service Cat Label (C ),Purpose of Spend (D),Expenditure CIPFA Sub Group (E ),Supplier (F),Supplier Reference (G),Pay Date (H),Transaction Number (I),Net Amount (J),Grant to VCSE? (K),Charity Number (L),Card Transaction (M),Irrecoverable VAT (N)
Pendle Borough Council,Parks & Recreation Services,Capital Costs,Capital : Purchase,cd01,BALMERS GM LIMITED,A0000198,20/10/2022,PCO0329248,5200,N,,N,N
Pendle Borough Council,Parks & Recreation Services,Supplies and Services,Expenditure : Materials,0002,BARNES JB LIMITED,A0000202,20/10/2022,PCO0329254,7.99,N,,N,N
Pendle Borough Council,Parks & Recreation Services,Supplies and Services,Expenditure : Materials,0002,BARNES JB LIMITED,A0000202,20/10/2022,PCO0329251,12.2,N,,N,N
Pendle Borough Council,Parks & Recreation Services,Supplies and Services,Expenditure : Materials,0002,BARNES JB LIMITED,A0000202,20/10/2022,PCO0329253,40,N,,N,N
Pendle Borough Council,Parks & Recreation Services,Supplies and Services,Expenditure : Materials,0002,BARNES JB LIMITED,A0000202,20/10/2022,PCO0329252,75.71,N,,N,N
Pendle Borough Council,Operational Services,Premises Related Expense,Bldgs : R & M : Day To Day,2001,BARNES JB LIMITED,A0000202,27/10/2022,OPS0329460,9,N,,N,N
Pendle Borough Council,Parks & Recreation Services,Premises Related Expense,Grounds : R & M : Day to Day : Routine,2101,BARNES JB LIMITED,A0000202,06/10/2022,PCO0328911,289.95,N,,N,N
Pendle Borough Council,Parks & Recreation Services,Premises Related Expense,Grounds : R & M : Day to Day : Routine,2101,BARNES JB LIMITED,A0000202,06/10/2022,PCO0328907,28.1,N,,N,N
Pendle Borough Council,Parks & Recreation Services,Premises Related Expense,Grounds : R & M : Day to Day : Routine,2101,BARNES JB LIMITED,A0000202,06/10/2022,PCO0328912,22.68,N,,N,N
Pendle Borough Council,Parks & Recreation Services,Premises Related Expense,Grounds : R & M : Day to Day : Routine,2101,BARNES JB LIMITED,A0000202,06/10/2022,PCO0328914,24.12,N,,N,N
Pendle Borough Council,Parks & Recreation Services,Premises Related Expense,Grounds : R & M : Day to Day : Routine,2101,BARNES JB LIMITED,A0000202,06/10/2022,PCO0328913,13.95,N,,N,N
Pendle Borough Council,Parks & Recreation Services,Transport Related Expense,Tprt : Repairs : General,3105,BARNES JB LIMITED,A0000202,06/10/2022,PCO4006609,-6.25,N,,N,N
Pendle Borough Council,Parks & Recreation Services,Transport Related Expense,Tprt : Repairs : General,3105,BARNES JB LIMITED,A0000202,06/10/2022,PCO0328909,12.5,N,,N,N
Pendle Borough Council,Parks & Recreation Services,Transport Related Expense,Tprt : Repairs : General,3105,BARNES JB LIMITED,A0000202,20/10/2022,PCO0329249,19.32,N,,N,N
Pendle Borough Council,Parks & Recreation Services,Transport Related Expense,Tprt : Repairs : General,3105,BARNES JB LIMITED,A0000202,20/10/2022,PCO0329250,22.15,N,,N,N
Pendle Borough Council,Parks & Recreation Services,Transport Related Expense,Tprt : Repairs : General,3105,BARNES JB LIMITED,A0000202,06/10/2022,PCO0328908,22.5,N,,N,N
Pendle Borough Council,Parks & Recreation Services,Transport Related Expense,Tprt : Repairs : General,3105,BARNES JB LIMITED,A0000202,06/10/2022,PCO0328910,53.03,N,,N,N
Pendle Borough Council,Economic Development & Tourism,Supplies and Services,Grants/Contributions,4739,BLACKBURN/DARWEN BOROUGH COUNCIL,A0000381,13/10/2022,REG0329095,15000,N,,N,N
Pendle Borough Council,Parks & Recreation Services,Transport Related Expense,Diesel Oil,3202,BOC GASES LTD,A0000386,06/10/2022,PCO0328915,24.45,N,,N,N
Pendle Borough Council,Parks & Recreation Services,Supplies and Services,Expenditure : Materials,0002,BARROWFORD SAFE & LOCK & BB LOCKSMITHS,A0000510,13/10/2022,PCO0329201,18.75,N,,N,N
Pendle Borough Council,Parks & Recreation Services,Premises Related Expense,Bldgs : R & M : Day To Day,2001,BARROWFORD SAFE & LOCK & BB LOCKSMITHS,A0000510,13/10/2022,PCO0329201,16.65,N,,N,N
Pendle Borough Council,Parks & Recreation Services,Premises Related Expense,Bldgs : R & M : Day To Day,2001,BARROWFORD SAFE & LOCK & BB LOCKSMITHS,A0000510,13/10/2022,PCO0329201,19.71,N,,N,N
Pendle Borough Council,Parks & Recreation Services,Premises Related Expense,Bldgs : R & M : Day To Day,2001,BARROWFORD SAFE & LOCK & BB LOCKSMITHS,A0000510,13/10/2022,PCO0329201,21.68,N,,N,N
Pendle Borough Council,Operational Services,Premises Related Expense,Bldgs : R & M : Day To Day,2001,BARROWFORD SAFE & LOCK & BB LOCKSMITHS,A0000510,13/10/2022,OPS0329151,13.32,N,,N,N
Pendle Borough Council,Financial Services,Supplies and Services,Seminars etc All Costs,4601,CIPFA,A0000563,06/10/2022,AAS0329076,100,N,,N,N
Pendle Borough Council,Financial Services,Supplies and Services,Seminars etc All Costs,4601,CIPFA,A0000563,06/10/2022,AAS0329075,220,N,,N,N
Pendle Borough Council,Environmental Health Services,Premises Related Expense,Bldgs : R & M : Abnormal,2002,MARTIN COLLINS JOINERY & GLAZING,A0000623,06/10/2022,ENV0328893,60,N,,N,N
Pendle Borough Council,Engineering & Special Projects,Premises Related Expense,Bldgs : R & M : Abnormal,2002,MARTIN COLLINS JOINERY & GLAZING,A0000623,20/10/2022,HED0329236,60,N,,N,N
Pendle Borough Council,Engineering & Special Projects,Premises Related Expense,Bldgs : R & M : Abnormal,2002,MARTIN COLLINS JOINERY & GLAZING,A0000623,27/10/2022,HED0329453,132,N,,N,N
Pendle Borough Council,Chief Executives Policy Unit,Supplies and Services,Mayoral Expenses,4614,CAVALIER TAXIS,A0000638,06/10/2022,COR0328931,25,N,,N,N
Pendle Borough Council,Engineering & Special Projects,Transfer Payments,Storage & Homelessness prevention,6104,CAVALIER TAXIS,A0000638,06/10/2022,HED0328990,35,N,,N,N
Pendle Borough Council,Engineering & Special Projects,Transfer Payments,Storage & Homelessness prevention,6104,CAVALIER TAXIS,A0000638,06/10/2022,HED0328885,545,N,,N,N
Pendle Borough Council,Financial Services,Supplies and Services,Computer Charges,4509,CIVICA UK LTD,A0000660,20/10/2022,AAS0329378,1083.33,N,,N,N
Pendle Borough Council,Parks & Recreation Services,Indirect Employee Expenses,Training,1211,CRAVEN COLLEGE,A0000735,13/10/2022,PCO0329203,741,N,,N,N
Pendle Borough Council,Financial Services,Premises Related Expense,Bldgs : R & M : Day To Day,2001,J DRIVER LTD,A0000884,24/10/2022,AAS0329836,470.25,N,,N,N
Pendle Borough Council,Property Services,Premises Related Expense,Bldgs : R & M : Day To Day,2001,J DRIVER LTD,A0000884,06/10/2022,EST0329024,498.27,N,,N,N
Pendle Borough Council,Financial Services,Premises Related Expense,Bldgs : R & M : Day To Day,2001,J DRIVER LTD,A0000884,24/10/2022,AAS0329836,600.75,N,,N,N
Pendle Borough Council,Financial Services,Premises Related Expense,Bldgs : R & M : Day To Day,2001,J DRIVER LTD,A0000884,24/10/2022,AAS0329836,1605.59,N,,N,N
Pendle Borough Council,Property Services,Premises Related Expense,Bldgs : R & M : Day To Day,2001,J DRIVER LTD,A0000884,06/10/2022,EST0329024,226.68,N,,N,N
Pendle Borough Council,Financial Services,Premises Related Expense,Bldgs : R & M : Day To Day,2001,J DRIVER LTD,A0000884,24/10/2022,AAS0329836,310.75,N,,N,N
Pendle Borough Council,Financial Services,Premises Related Expense,Bldgs : R & M : Day To Day,2001,J DRIVER LTD,A0000884,24/10/2022,AAS0329836,720.39,N,,N,N
Pendle Borough Council,Financial Services,Premises Related Expense,Bldgs : R & M : Day To Day,2001,J DRIVER LTD,A0000884,24/10/2022,AAS0329836,233.74,N,,N,N
Pendle Borough Council,Property Services,Premises Related Expense,Bldgs : R & M : Day To Day,2001,J DRIVER LTD,A0000884,06/10/2022,EST0329024,350,N,,N,N
Pendle Borough Council,Property Services,Premises Related Expense,Bldgs : R & M : Day To Day,2001,J DRIVER LTD,A0000884,06/10/2022,EST0329024,105,N,,N,N
Pendle Borough Council,Financial Services,Premises Related Expense,Bldgs : R & M : Day To Day,2001,J DRIVER LTD,A0000884,24/10/2022,AAS0329836,912.24,N,,N,N
Pendle Borough Council,Financial Services,Premises Related Expense,Bldgs : R & M : Day To Day,2001,J DRIVER LTD,A0000884,24/10/2022,AAS0329836,226.76,N,,N,N
Pendle Borough Council,Financial Services,Premises Related Expense,Bldgs : R & M : Day To Day,2001,J DRIVER LTD,A0000884,24/10/2022,AAS0329836,252,N,,N,N
Pendle Borough Council,Property Services,Premises Related Expense,Bldgs : R & M : Day To Day,2001,J DRIVER LTD,A0000884,06/10/2022,EST0329024,171.73,N,,N,N
Pendle Borough Council,Financial Services,Capital Costs,Capital : Payments,CD14,J DRIVER LTD,A0000884,24/10/2022,AAS0329836,2519.57,N,,N,N
Pendle Borough Council,Parks & Recreation Services,Premises Related Expense,Grounds : R & M : Day to Day : Routine,2101,ENGINEERING & FOUNDRY SUPPLIES,A0001002,13/10/2022,PCO0329206,40.95,N,,N,N
Pendle Borough Council,Parks & Recreation Services,Supplies and Services,Protective Clothing,4201,ENGINEERING & FOUNDRY SUPPLIES,A0001002,06/10/2022,PCO4006610,-30,N,,N,N
Pendle Borough Council,Parks & Recreation Services,Supplies and Services,Protective Clothing,4201,ENGINEERING & FOUNDRY SUPPLIES,A0001002,20/10/2022,PCO0329289,85.5,N,,N,N
Pendle Borough Council,Parks & Recreation Services,Supplies and Services,Protective Clothing,4201,ENGINEERING & FOUNDRY SUPPLIES,A0001002,13/10/2022,PCO0329207,128.32,N,,N,N
Pendle Borough Council,Parks & Recreation Services,Supplies and Services,Protective Clothing,4201,ENGINEERING & FOUNDRY SUPPLIES,A0001002,13/10/2022,PCO0329205,132.6,N,,N,N
Pendle Borough Council,Operational Services,Supplies and Services,Other Expenses,4705,ENGINEERING & FOUNDRY SUPPLIES,A0001002,13/10/2022,OPS0329028,131.23,N,,N,N
Pendle Borough Council,Operational Services,,Stock : Purchases,PJ01,ENGINEERING & FOUNDRY SUPPLIES,A0001002,13/10/2022,OPS4006612,-16.35,N,,N,N
Pendle Borough Council,Operational Services,,Stock : Purchases,PJ01,ENGINEERING & FOUNDRY SUPPLIES,A0001002,13/10/2022,OPS4006611,-5.45,N,,N,N
Pendle Borough Council,Operational Services,,Stock : Purchases,PJ01,ENGINEERING & FOUNDRY SUPPLIES,A0001002,13/10/2022,OPS0329148,11.25,N,,N,N
Pendle Borough Council,Operational Services,,Stock : Purchases,PJ01,ENGINEERING & FOUNDRY SUPPLIES,A0001002,06/10/2022,OPS0328927,27.8,N,,N,N
Pendle Borough Council,Operational Services,,Stock : Purchases,PJ01,ENGINEERING & FOUNDRY SUPPLIES,A0001002,13/10/2022,OPS0329029,32.32,N,,N,N
Pendle Borough Council,Operational Services,,Stock : Purchases,PJ01,ENGINEERING & FOUNDRY SUPPLIES,A0001002,06/10/2022,OPS0328926,38.2,N,,N,N
Pendle Borough Council,Operational Services,,Stock : Purchases,PJ01,ENGINEERING & FOUNDRY SUPPLIES,A0001002,13/10/2022,OPS0329149,48.7,N,,N,N
Pendle Borough Council,Operational Services,,Stock : Purchases,PJ01,ENGINEERING & FOUNDRY SUPPLIES,A0001002,13/10/2022,OPS0329148,75.95,N,,N,N
Pendle Borough Council,Operational Services,,Stock : Purchases,PJ01,ENGINEERING & FOUNDRY SUPPLIES,A0001002,13/10/2022,OPS0329150,75.95,N,,N,N
Pendle Borough Council,Operational Services,,Stock : Purchases,PJ01,ENGINEERING & FOUNDRY SUPPLIES,A0001002,06/10/2022,OPS0328926,126.72,N,,N,N
Pendle Borough Council,Operational Services,,Stock : Purchases,PJ01,ENGINEERING & FOUNDRY SUPPLIES,A0001002,13/10/2022,OPS0329148,151.9,N,,N,N
Pendle Borough Council,Operational Services,,Stock : Purchases,PJ01,ENGINEERING & FOUNDRY SUPPLIES,A0001002,06/10/2022,OPS0329013,187.22,N,,N,N
Pendle Borough Council,Operational Services,,Stock : Purchases,PJ01,ENGINEERING & FOUNDRY SUPPLIES,A0001002,06/10/2022,OPS0328926,278.85,N,,N,N
Pendle Borough Council,Operational Services,,Stock : Purchases,PJ01,ENGINEERING & FOUNDRY SUPPLIES,A0001002,06/10/2022,OPS0328926,499.2,N,,N,N
Pendle Borough Council,Operational Services,Transport Related Expense,Tprt : Repairs : General,3105,FORBES SOLICITORS,A0001117,27/10/2022,OPS0329470,-1174,N,,N,N
Pendle Borough Council,Operational Services,Transport Related Expense,Tprt : Repairs : General,3105,FORBES SOLICITORS,A0001117,27/10/2022,OPS0329470,1174,N,,N,N
Pendle Borough Council,Operational Services,Transport Related Expense,Tprt : Repairs : General,3105,FREIGHT TRANSPORT ASSOCIATION,A0001124,13/10/2022,OPS0329027,42,N,,N,N
Pendle Borough Council,Operational Services,Transport Related Expense,Tprt : Repairs : General,3105,FREIGHT TRANSPORT ASSOCIATION,A0001124,20/10/2022,OPS0329286,42,N,,N,N
Pendle Borough Council,Operational Services,Transport Related Expense,Tprt : Repairs : General,3105,FREIGHT TRANSPORT ASSOCIATION,A0001124,27/10/2022,OPS0329468,45.95,N,,N,N
Pendle Borough Council,Engineering & Special Projects,Premises Related Expense,Grounds : R & M : Day to Day : Routine,2101,RYMACK SIGN SOLUTIONS LTD,A0001202,27/10/2022,HED0329495,19.69,N,,N,N
Pendle Borough Council,Engineering & Special Projects,Premises Related Expense,Grounds : R & M : Day to Day : Routine,2101,RYMACK SIGN SOLUTIONS LTD,A0001202,27/10/2022,HED0329495,118.16,N,,N,N
Pendle Borough Council,Engineering & Special Projects,Premises Related Expense,Grounds : R & M : Day to Day : Routine,2101,RYMACK SIGN SOLUTIONS LTD,A0001202,27/10/2022,HED0329495,19.69,N,,N,N
Pendle Borough Council,Engineering & Special Projects,Premises Related Expense,Grounds : R & M : Day to Day : Routine,2101,RYMACK SIGN SOLUTIONS LTD,A0001202,27/10/2022,HED0329495,78.77,N,,N,N
Pendle Borough Council,Engineering & Special Projects,Premises Related Expense,Grounds : R & M : Day to Day : Routine,2101,RYMACK SIGN SOLUTIONS LTD,A0001202,27/10/2022,HED0329495,19.69,N,,N,N
Pendle Borough Council,Engineering & Special Projects,Supplies and Services,Mayoral Expenses,4614,GOING DUTCH FLORIST,A0001216,20/10/2022,HED0329240,59.16,N,,N,N
Pendle Borough Council,Parks & Recreation Services,Supplies and Services,Expenditure : Materials,0002,JEWSON LIMITED,A0001323,20/10/2022,PCO0329273,167.75,N,,N,N
Pendle Borough Council,Parks & Recreation Services,Premises Related Expense,Grounds : R & M : Day to Day : Routine,2101,JEWSON LIMITED,A0001323,20/10/2022,PCO0329274,53.76,N,,N,N
Pendle Borough Council,Parks & Recreation Services,Premises Related Expense,Grounds : R & M : Day to Day : Routine,2101,JEWSON LIMITED,A0001323,13/10/2022,PCO0329210,37.6,N,,N,N
Pendle Borough Council,Parks & Recreation Services,Premises Related Expense,Grounds : R & M : Day to Day : Routine,2101,HELLIWELLS FUNERAL SERVICE LTD,A0001358,27/10/2022,PCO0329478,525,N,,N,N
Pendle Borough Council,Parks & Recreation Services,Premises Related Expense,Grounds : R & M : Day to Day : Routine,2101,J HARGREAVES,A0001359,27/10/2022,PCO0329479,25,N,,N,N
Pendle Borough Council,Parks & Recreation Services,Premises Related Expense,Grounds : R & M : Day to Day : Routine,2101,LANLEE SUPPLIES LIMITED,A0001672,13/10/2022,PCO0329212,48,N,,N,N
Pendle Borough Council,Parks & Recreation Services,Premises Related Expense,Grounds : R & M : Day to Day : Routine,2101,LANLEE SUPPLIES LIMITED,A0001672,20/10/2022,PCO0329276,301.41,N,,N,N
Pendle Borough Council,Parks & Recreation Services,Supplies and Services,Expenditure : Materials,0002,LBS WORLDWIDE LIMITED,A0001673,20/10/2022,PCO0329277,23.74,N,,N,N
Pendle Borough Council,Parks & Recreation Services,Premises Related Expense,Grounds : R & M : Day to Day : Routine,2101,LBS WORLDWIDE LIMITED,A0001673,13/10/2022,PCO0329211,9.37,N,,N,N
Pendle Borough Council,Parks & Recreation Services,Transport Related Expense,Tprt : Repairs : General,3105,DICK LEIGH,A0001675,13/10/2022,PCO0329204,39.4,N,,N,N
Pendle Borough Council,Parks & Recreation Services,Transport Related Expense,Tprt : Repairs : General,3105,DICK LEIGH,A0001675,13/10/2022,PCO0329204,39.41,N,,N,N
Pendle Borough Council,Parks & Recreation Services,Transport Related Expense,Diesel Oil,3202,DICK LEIGH,A0001675,13/10/2022,PCO0329204,189.64,N,,N,N
Pendle Borough Council,Democratic & Legal Services,Supplies and Services,Search Fees,4404,LANCASHIRE COUNTY COUNCIL,A0001690,13/10/2022,DAL0329143,285.2,N,,N,N
Pendle Borough Council,Engineering & Special Projects,Capital Costs,Capital : Payments,CD14,LANCASHIRE COUNTY COUNCIL,A0001690,06/10/2022,HED0329005,2732.5,N,,N,N
Pendle Borough Council,Operational Services,Premises Related Expense,Grounds : R & M : Day to Day : Routine,2101,JOHN MACADAM & SON (RESCUE) LTD,A0001846,06/10/2022,OPS0328897,490,N,,N,N
Pendle Borough Council,Property Services,Premises Related Expense,Water & Sewerage,2501,WATER PLUS LIMITED,A0001986,13/10/2022,EST0329183,109.36,N,,N,N
Pendle Borough Council,Property Services,Premises Related Expense,Water & Sewerage,2501,WATER PLUS LIMITED,A0001986,13/10/2022,EST0329181,37.03,N,,N,N
Pendle Borough Council,Property Services,Premises Related Expense,Water & Sewerage,2501,WATER PLUS LIMITED,A0001986,06/10/2022,EST0329021,46.92,N,,N,N
Pendle Borough Council,Property Services,Premises Related Expense,Water & Sewerage,2501,WATER PLUS LIMITED,A0001986,27/10/2022,EST0329496,147.1,N,,N,N
Pendle Borough Council,Property Services,Premises Related Expense,Water & Sewerage,2501,WATER PLUS LIMITED,A0001986,27/10/2022,EST0329499,86,N,,N,N
Pendle Borough Council,Property Services,Premises Related Expense,Water & Sewerage,2501,WATER PLUS LIMITED,A0001986,27/10/2022,EST0329500,132.78,N,,N,N
Pendle Borough Council,Property Services,Premises Related Expense,Water & Sewerage,2501,WATER PLUS LIMITED,A0001986,27/10/2022,EST0329502,40.14,N,,N,N
Pendle Borough Council,Property Services,Premises Related Expense,Water & Sewerage,2501,WATER PLUS LIMITED,A0001986,13/10/2022,EST0329185,17.3,N,,N,N
Pendle Borough Council,Property Services,Premises Related Expense,Water & Sewerage,2501,WATER PLUS LIMITED,A0001986,13/10/2022,EST0329196,21.66,N,,N,N
Pendle Borough Council,Property Services,Premises Related Expense,Water & Sewerage,2501,WATER PLUS LIMITED,A0001986,27/10/2022,EST0329503,11,N,,N,N
Pendle Borough Council,Property Services,Premises Related Expense,Water & Sewerage,2501,WATER PLUS LIMITED,A0001986,13/10/2022,EST0329186,8.3,N,,N,N
Pendle Borough Council,Property Services,Premises Related Expense,Water & Sewerage,2501,WATER PLUS LIMITED,A0001986,13/10/2022,EST4006613,-561.98,N,,N,N
Pendle Borough Council,Property Services,Premises Related Expense,Water & Sewerage,2501,WATER PLUS LIMITED,A0001986,13/10/2022,EST0329187,512.94,N,,N,N
Pendle Borough Council,Property Services,Premises Related Expense,Water & Sewerage,2501,WATER PLUS LIMITED,A0001986,27/10/2022,EST0329498,243.33,N,,N,N
Pendle Borough Council,Property Services,Premises Related Expense,Water & Sewerage,2501,WATER PLUS LIMITED,A0001986,27/10/2022,EST0329504,16.26,N,,N,N
Pendle Borough Council,Property Services,Premises Related Expense,Water & Sewerage,2501,WATER PLUS LIMITED,A0001986,27/10/2022,EST0329505,35.83,N,,N,N
Pendle Borough Council,Property Services,Premises Related Expense,Water & Sewerage,2501,WATER PLUS LIMITED,A0001986,13/10/2022,EST0329190,79.73,N,,N,N
Pendle Borough Council,Property Services,Premises Related Expense,Water & Sewerage,2501,WATER PLUS LIMITED,A0001986,13/10/2022,EST0329184,1135.24,N,,N,N
Pendle Borough Council,Property Services,Premises Related Expense,Water & Sewerage,2501,WATER PLUS LIMITED,A0001986,13/10/2022,EST0329189,188.93,N,,N,N
Pendle Borough Council,Parks & Recreation Services,Premises Related Expense,Cleaning Materials,2605,OPTION HYGIENE LIMITED,A0002063,13/10/2022,PCO0329215,54.87,N,,N,N
Pendle Borough Council,Engineering & Special Projects,Supplies and Services,Postages,4501,ROYAL MAIL GROUP LIMITED,A0002281,20/10/2022,HED0329233,24.5,N,,N,N
Pendle Borough Council,Engineering & Special Projects,Supplies and Services,Postages,4501,ROYAL MAIL GROUP LIMITED,A0002281,20/10/2022,HED0329233,225.78,N,,N,N
Pendle Borough Council,Engineering & Special Projects,Supplies and Services,Postages,4501,ROYAL MAIL GROUP LIMITED,A0002281,20/10/2022,HED0329233,24,N,,N,N
Pendle Borough Council,Engineering & Special Projects,Supplies and Services,Postages,4501,ROYAL MAIL GROUP LIMITED,A0002281,20/10/2022,HED0329233,34.64,N,,N,N
Pendle Borough Council,Engineering & Special Projects,Supplies and Services,Postages,4501,ROYAL MAIL GROUP LIMITED,A0002281,20/10/2022,HED0329233,16.12,N,,N,N
Pendle Borough Council,Engineering & Special Projects,Supplies and Services,Postages,4501,ROYAL MAIL GROUP LIMITED,A0002281,20/10/2022,HED0329233,4.31,N,,N,N
Pendle Borough Council,Engineering & Special Projects,Supplies and Services,Postages,4501,ROYAL MAIL GROUP LIMITED,A0002281,20/10/2022,HED0329233,29.08,N,,N,N
Pendle Borough Council,Engineering & Special Projects,Supplies and Services,Postages,4501,ROYAL MAIL GROUP LIMITED,A0002281,20/10/2022,HED0329233,56,N,,N,N
Pendle Borough Council,Engineering & Special Projects,Supplies and Services,Postages,4501,ROYAL MAIL GROUP LIMITED,A0002281,20/10/2022,HED0329233,161.03,N,,N,N
Pendle Borough Council,Engineering & Special Projects,Supplies and Services,Postages,4501,ROYAL MAIL GROUP LIMITED,A0002281,20/10/2022,HED0329233,253.78,N,,N,N
Pendle Borough Council,Engineering & Special Projects,Supplies and Services,Postages,4501,ROYAL MAIL GROUP LIMITED,A0002281,20/10/2022,HED0329233,10.7,N,,N,N
Pendle Borough Council,Engineering & Special Projects,Supplies and Services,Postages,4501,ROYAL MAIL GROUP LIMITED,A0002281,20/10/2022,HED0329233,38.26,N,,N,N
Pendle Borough Council,Engineering & Special Projects,Supplies and Services,Postages,4501,ROYAL MAIL GROUP LIMITED,A0002281,20/10/2022,HED0329233,190.77,N,,N,N
Pendle Borough Council,Engineering & Special Projects,Supplies and Services,Postages,4501,ROYAL MAIL GROUP LIMITED,A0002281,20/10/2022,HED0329233,108.42,N,,N,N
Pendle Borough Council,Engineering & Special Projects,Supplies and Services,Postages,4501,ROYAL MAIL GROUP LIMITED,A0002281,20/10/2022,HED0329233,368.87,N,,N,N
Pendle Borough Council,Operational Services,Transport Related Expense,Tprt : Annual Hire Charge,3601,STANLEY BROTHERS (TIPPERS) LTD,A0002422,06/10/2022,OPS0329014,2420,N,,N,N
Pendle Borough Council,Property Services,Premises Related Expense,Bldgs : R & M : Day To Day,2001,STONE OAK LTD,A0002530,20/10/2022,EST0329332,1130,N,,N,N
Pendle Borough Council,Engineering & Special Projects,Premises Related Expense,Bldgs : R & M : Day To Day,2001,T & F STEEL DESIGNS LTD,A0002627,06/10/2022,HED0329009,40,N,,N,N
Pendle Borough Council,Engineering & Special Projects,Premises Related Expense,Bldgs : R & M : Day To Day,2001,T & F STEEL DESIGNS LTD,A0002627,06/10/2022,HED0329009,120,N,,N,24
Pendle Borough Council,Engineering & Special Projects,Premises Related Expense,Grounds : R & M : Day to Day : Routine,2101,T & F STEEL DESIGNS LTD,A0002627,20/10/2022,HED0329354,15,N,,N,N
Pendle Borough Council,Engineering & Special Projects,Premises Related Expense,Grounds : R & M : Day to Day : Routine,2101,T & F STEEL DESIGNS LTD,A0002627,20/10/2022,HED0329354,40,N,,N,8
Pendle Borough Council,Engineering & Special Projects,Premises Related Expense,Grounds : R & M : Day to Day : Routine,2101,T & F STEEL DESIGNS LTD,A0002627,06/10/2022,HED0329010,155,N,,N,31
Pendle Borough Council,Engineering & Special Projects,Premises Related Expense,Grounds : R & M : Day to Day : Routine,2101,T & F STEEL DESIGNS LTD,A0002627,06/10/2022,HED0329010,160,N,,N,N
Pendle Borough Council,Engineering & Special Projects,Capital Costs,Ren Grant : 1996 Act,CH22,CLOSOMAT LIMITED,A0002685,06/10/2022,HED0329000,4527,N,,N,N
Pendle Borough Council,Engineering & Special Projects,Capital Costs,Ren Grant : 1996 Act,CH22,CLOSOMAT LIMITED,A0002685,06/10/2022,HED0329001,4640,N,,N,N
Pendle Borough Council,Operational Services,Supplies and Services,EFM Materials,4004,TRISTAR PRINTERS LTD,A0002731,27/10/2022,OPS0329462,121,N,,N,N
Pendle Borough Council,Operational Services,Supplies and Services,Printing & Stationery,4301,TRISTAR PRINTERS LTD,A0002731,27/10/2022,OPS0329466,247,N,,N,N
Pendle Borough Council,Operational Services,Agency Staff,Emp : Agency Wages,1004,DHRB LIMITED T/A DRIVER HIRE (45680),A0003556,27/10/2022,OPS0329473,654.07,N,,N,N
Pendle Borough Council,Operational Services,Agency Staff,Emp : Agency Wages,1004,DHRB LIMITED T/A DRIVER HIRE (45680),A0003556,06/10/2022,OPS0328900,708.75,N,,N,N
Pendle Borough Council,Operational Services,Agency Staff,Emp : Agency Wages,1004,DHRB LIMITED T/A DRIVER HIRE (45680),A0003556,20/10/2022,OPS0329246,780.41,N,,N,N
Pendle Borough Council,Operational Services,Agency Staff,Emp : Agency Wages,1004,DHRB LIMITED T/A DRIVER HIRE (45680),A0003556,20/10/2022,OPS0329247,1152.83,N,,N,N
Pendle Borough Council,Operational Services,Agency Staff,Emp : Agency Wages,1004,DHRB LIMITED T/A DRIVER HIRE (45680),A0003556,06/10/2022,OPS0328901,1397.51,N,,N,N
Pendle Borough Council,Operational Services,Agency Staff,Emp : Agency Wages,1004,DHRB LIMITED T/A DRIVER HIRE (45680),A0003556,20/10/2022,OPS0329246,129.8,N,,N,N
Pendle Borough Council,Operational Services,Agency Staff,Emp : Agency Wages,1004,DHRB LIMITED T/A DRIVER HIRE (45680),A0003556,27/10/2022,OPS0329472,144.38,N,,N,N
Pendle Borough Council,Operational Services,Agency Staff,Emp : Agency Wages,1004,DHRB LIMITED T/A DRIVER HIRE (45680),A0003556,06/10/2022,OPS0328901,149.07,N,,N,N
Pendle Borough Council,Operational Services,Agency Staff,Emp : Agency Wages,1004,DHRB LIMITED T/A DRIVER HIRE (45680),A0003556,06/10/2022,OPS0328899,708.75,N,,N,N
Pendle Borough Council,Operational Services,Agency Staff,Emp : Agency Wages,1004,DHRB LIMITED T/A DRIVER HIRE (45680),A0003556,27/10/2022,OPS0329473,708.75,N,,N,N
Pendle Borough Council,Operational Services,Premises Related Expense,Grounds : R & M : Day to Day : Routine,2101,ENVIRONMENT AGENCY,A0003560,06/10/2022,OPS0328929,330,N,,N,N
Pendle Borough Council,Engineering & Special Projects,Capital Costs,Capital : Payments,CD14,ENVIRONMENT AGENCY,A0003560,13/10/2022,HED0329167,1344,N,,N,N
Pendle Borough Council,Parks & Recreation Services,Premises Related Expense,Grounds : R & M : Day to Day : Routine,2101,WICKSTEED LEISURE LTD,A0004748,06/10/2022,PCO0328925,1722.55,N,,N,N
Pendle Borough Council,Operational Services,Transport Related Expense,Diesel Oil,3202,CERTAS ENERGY UK T/A TOWNSON BROS,A0005683,27/10/2022,OPS0329457,100,N,,N,N
Pendle Borough Council,Operational Services,Transport Related Expense,Diesel Oil,3202,CERTAS ENERGY UK T/A TOWNSON BROS,A0005683,27/10/2022,OPS0329457,1040,N,,N,N
Pendle Borough Council,Parks & Recreation Services,Transport Related Expense,Tprt : Repairs : General,3105,F G ROWLAND LIMITED,A0006489,20/10/2022,PCO0329271,780,N,,N,N
Pendle Borough Council,Parks & Recreation Services,Transport Related Expense,Tprt : Repairs : General,3105,F G ROWLAND LIMITED,A0006489,06/10/2022,PCO0328916,1690,N,,N,N
Pendle Borough Council,Parks & Recreation Services,Transport Related Expense,Tprt : Repairs : General,3105,F G ROWLAND LIMITED,A0006489,13/10/2022,PCO0329208,856.27,N,,N,N
Pendle Borough Council,Democratic & Legal Services,Indirect Employee Expenses,Staff Refreshments,1261,PHILIP SANDERSON,A0006611,13/10/2022,DAL0329126,20.23,N,,N,N
Pendle Borough Council,Democratic & Legal Services,Supplies and Services,Hospitality,4611,PHILIP SANDERSON,A0006611,13/10/2022,DAL0329126,20.23,N,,N,N
Pendle Borough Council,Property Services,Indirect Employee Expenses,Staff Refreshments,1261,VENDA VALET (MACHINES) LTD,A0009649,06/10/2022,EST0329022,65,N,,N,N
Pendle Borough Council,Property Services,Capital Costs,Capital : Payments,cd14,SANDEROOF LTD,A0009837,27/10/2022,EST0329507,1821,N,,N,N
Pendle Borough Council,Engineering & Special Projects,Capital Costs,Ren Grant : 1996 Act,CH22,SPAIN BUILDING & MAINTENANCE,A0015325,20/10/2022,HED0329265,8491,N,,N,N
Pendle Borough Council,Operational Services,Supplies and Services,Sub-Contractors,4007,ORCHARD RECYCLING SERVICE,A0015803,13/10/2022,OPS0329146,1686.3,N,,N,N
Pendle Borough Council,Operational Services,Supplies and Services,Sub-Contractors,4007,ORCHARD RECYCLING SERVICE,A0015803,06/10/2022,OPS0328894,1786.4,N,,N,N
Pendle Borough Council,Operational Services,Supplies and Services,Sub-Contractors,4007,ORCHARD RECYCLING SERVICE,A0015803,20/10/2022,OPS0329243,2209.9,N,,N,N
Pendle Borough Council,Operational Services,Supplies and Services,Sub-Contractors,4007,ORCHARD RECYCLING SERVICE,A0015803,27/10/2022,OPS0329463,2456.3,N,,N,N
Pendle Borough Council,Parks & Recreation Services,Premises Related Expense,Bldgs : R & M : Day To Day,2001,BURNLEY METALCRAFT LTD,A0020350,20/10/2022,PCO0329257,590,N,,N,N
Pendle Borough Council,Parks & Recreation Services,Premises Related Expense,Grounds : R & M : Day to Day : Routine,2101,BURNLEY METALCRAFT LTD,A0020350,20/10/2022,PCO0329256,640,N,,N,N
Pendle Borough Council,Engineering & Special Projects,Capital Costs,Ren Grant : 1996 Act,CH22,STANNAH LIFT SERVICES LTD,A0021089,27/10/2022,HED0329416,2846,N,,N,N
Pendle Borough Council,Engineering & Special Projects,Capital Costs,Ren Grant : 1996 Act,CH22,STANNAH LIFT SERVICES LTD,A0021089,27/10/2022,HED0329417,2927,N,,N,N
Pendle Borough Council,Environmental Health Services,Capital Costs,Ren Grant : 1996 Act,CH22,STANNAH LIFT SERVICES LTD,A0021089,13/10/2022,ENV0329130,3516,N,,N,N
Pendle Borough Council,Operational Services,Premises Related Expense,Bldgs : R & M : Day To Day,2001,SAANRO INTERNATIONAL LTD,A0021480,27/10/2022,OPS0329461,31,N,,N,N
Pendle Borough Council,Operational Services,Supplies and Services,Sub-Contractors,4007,ASPEN VALLEY KENNELS & CATTERY,A0022106,06/10/2022,OPS0329015,650,N,,N,N
Pendle Borough Council,Operational Services,Supplies and Services,Other Expenses,4705,ASPEN VALLEY KENNELS & CATTERY,A0022106,06/10/2022,OPS0329015,780.6,N,,N,N
Pendle Borough Council,Environmental Health Services,Supplies and Services,Other Expenses,4705,GRADKO INTERNATIONAL LTD,A0025806,13/10/2022,ENV0329089,201.6,N,,N,N
Pendle Borough Council,Engineering & Special Projects,Supplies and Services,Other Expenses,4705,GRADKO INTERNATIONAL LTD,A0025806,20/10/2022,HED0329230,201.6,N,,N,N
Pendle Borough Council,Property Services,Premises Related Expense,Service Charge,2702,BARNFIELD INVESTMENT PROPERTIES LTD,A0026595,13/10/2022,EST0329191,2249.91,N,,N,N
Pendle Borough Council,Engineering & Special Projects,,Paid in the Year,PD03,FARRER & CO,A0027034,27/10/2022,HED0329412,1020,N,,N,N
Pendle Borough Council,Engineering & Special Projects,Premises Related Expense,Grounds : R & M : Day to Day : Routine,2101,LITE,A0040032,20/10/2022,HED0329349,105,N,,N,N
Pendle Borough Council,Human Resources,Indirect Employee Expenses,Recruitment,1221,SOLACE GROUP LIMITED,A0040401,27/10/2022,PER0329510,6280.65,N,,N,N
Pendle Borough Council,Property Services,Premises Related Expense,Bldgs : R & M : Day To Day,2001,PENNINE FIRE & SAFETY LTD,A0040931,06/10/2022,EST0329017,58,N,,N,N
Pendle Borough Council,Engineering & Special Projects,Indirect Employee Expenses,Emp : Practising Certificates,1201,THE ASSOCIATION OF ELECTORAL ADMINISTRATORS,A0040939,20/10/2022,HED0329231,190,N,,N,N
Pendle Borough Council,Democratic & Legal Services,Supplies and Services,Printing & Stationery,4301,CIVICA ELECTION SERVICES,A0041321,06/10/2022,DAL0328890,422.08,N,,N,N
Pendle Borough Council,Democratic & Legal Services,Supplies and Services,Postages,4501,CIVICA ELECTION SERVICES,A0041321,06/10/2022,DAL0328890,450.88,N,,N,N
Pendle Borough Council,Engineering & Special Projects,Capital Costs,Capital : Payments,CD14,D J LINGARD & ASSOCIATES LTD,A0042727,20/10/2022,HED0329347,6300,N,,N,N
Pendle Borough Council,Engineering & Special Projects,Capital Costs,Capital : Payments,CD14,D J LINGARD & ASSOCIATES LTD,A0042727,27/10/2022,HED0329492,1560,N,,N,N
Pendle Borough Council,Parks & Recreation Services,Premises Related Expense,Grounds : R & M : Day to Day : Routine,2101,C & R WALNE ENGRAVERS,A0042734,20/10/2022,PCO0329258,42,N,,N,N
Pendle Borough Council,Parks & Recreation Services,Premises Related Expense,Grounds : R & M : Day to Day : Routine,2101,C & R WALNE ENGRAVERS,A0042734,20/10/2022,PCO0329259,42,N,,N,N
Pendle Borough Council,Parks & Recreation Services,Premises Related Expense,Grounds : R & M : Day to Day : Routine,2101,C & R WALNE ENGRAVERS,A0042734,27/10/2022,PCO0329477,67.5,N,,N,N
Pendle Borough Council,Parks & Recreation Services,Premises Related Expense,Grounds : R & M : Day to Day : Routine,2101,GREENVALE PRODUCTS LIMITED,A0043407,13/10/2022,PCO0329209,40.05,N,,N,N
Pendle Borough Council,Parks & Recreation Services,Transport Related Expense,Tprt : Repairs : General,3105, J RUSHTON,A0043864,27/10/2022,PCO0329483,120,N,,N,N
Pendle Borough Council,Operational Services,Supplies and Services,Sub-Contractors,4007,S M SHEPHERD BUILDING CONTRACTORS,A0044037,27/10/2022,OPS0329467,60,N,,N,N
Pendle Borough Council,Operational Services,Supplies and Services,Sub-Contractors,4007,S M SHEPHERD BUILDING CONTRACTORS,A0044037,27/10/2022,OPS0329467,60,N,,N,24
Pendle Borough Council,Operational Services,Supplies and Services,Sub-Contractors,4007,S M SHEPHERD BUILDING CONTRACTORS,A0044037,13/10/2022,OPS0329154,190,N,,N,N
Pendle Borough Council,Operational Services,Supplies and Services,Sub-Contractors,4007,S M SHEPHERD BUILDING CONTRACTORS,A0044037,13/10/2022,OPS0329154,190,N,,N,38
Pendle Borough Council,Operational Services,,Paid in the Year,PD03,S M SHEPHERD BUILDING CONTRACTORS,A0044037,06/10/2022,OPS0328898,180,N,,N,36
Pendle Borough Council,Financial Services,Supplies and Services,Licences,4416,PRICEWATERHOUSECOOPERS LLP,A0044167,20/10/2022,AAS0329376,120,N,,N,N
Pendle Borough Council,Planning & Building Control,Supplies and Services,EFM : Other Equipment,4003,VIP SYSTEM LIMITED,A0050529,20/10/2022,PBC0329293,113.12,N,,N,N
Pendle Borough Council,Planning & Building Control,Supplies and Services,EFM : Other Equipment,4003,VIP SYSTEM LIMITED,A0050529,20/10/2022,PBC0329293,48.48,N,,N,N
Pendle Borough Council,Financial Services,Premises Related Expense,Rents,2301,LIBERATA UK LTD,A0051618,13/10/2022,AAS0329220,502.33,N,,N,N
Pendle Borough Council,Financial Services,Agency Costs,Liberata,5301,LIBERATA UK LTD,A0051618,27/10/2022,AAS0329513,3926.09,N,,N,N
Pendle Borough Council,Financial Services,Agency Costs,#N/A,5303,LIBERATA UK LTD,A0051618,14/10/2022,AAS0329832,6191.67,N,,N,N
Pendle Borough Council,Financial Services,Agency Costs,#N/A,5303,LIBERATA UK LTD,A0051618,14/10/2022,AAS0329832,34579.69,N,,N,N
Pendle Borough Council,Financial Services,Agency Costs,#N/A,5303,LIBERATA UK LTD,A0051618,14/10/2022,AAS0329832,30648.85,N,,N,N
Pendle Borough Council,Financial Services,Agency Costs,#N/A,5303,LIBERATA UK LTD,A0051618,14/10/2022,AAS0329832,88073.22,N,,N,N
Pendle Borough Council,Financial Services,Agency Costs,#N/A,5303,LIBERATA UK LTD,A0051618,14/10/2022,AAS0329832,57954.45,N,,N,N
Pendle Borough Council,Financial Services,Agency Costs,#N/A,5303,LIBERATA UK LTD,A0051618,14/10/2022,AAS0329832,89980.74,N,,N,N
Pendle Borough Council,Financial Services,Agency Costs,#N/A,5303,LIBERATA UK LTD,A0051618,14/10/2022,AAS0329832,118452.66,N,,N,N
Pendle Borough Council,Environmental Health Services,Capital Costs,Capital: Design Fees,CD53,LIBERATA UK LTD,A0051618,13/10/2022,ENV0329164,3947.83,N,,N,N
Pendle Borough Council,Environmental Health Services,Capital Costs,Ren Grant : 1996 Act,CH22,LIBERATA UK LTD,A0051618,13/10/2022,ENV0329129,731.39,N,,N,N
Pendle Borough Council,Human Resources,Supplies and Services,Other Expenses,4705,FIDELITI LIMITED,A0052058,13/10/2022,PER0329169,12.15,N,,N,N
Pendle Borough Council,Parks & Recreation Services,Premises Related Expense,Grounds : R & M : Day to Day : Routine,2101,ARCOL ENGINEERING LTD,A0052060,13/10/2022,PCO0329198,120,N,,N,N
Pendle Borough Council,Parks & Recreation Services,Premises Related Expense,Grounds : R & M : Day to Day : Routine,2101,ARCOL ENGINEERING LTD,A0052060,13/10/2022,PCO0329200,90,N,,N,N
Pendle Borough Council,Parks & Recreation Services,Transport Related Expense,Tprt : Repairs : General,3105,ARCOL ENGINEERING LTD,A0052060,13/10/2022,PCO0329200,90,N,,N,N
Pendle Borough Council,Parks & Recreation Services,Transport Related Expense,Tprt : Repairs : General,3105,ARCOL ENGINEERING LTD,A0052060,13/10/2022,PCO0329199,150,N,,N,N
Pendle Borough Council,Operational Services,Capital Costs,Capital : Payments,CD14,MGB PLASTICS LIMITED,A0052535,20/10/2022,OPS0329285,5880,N,,N,N
Pendle Borough Council,Engineering & Special Projects,Premises Related Expense,Bldgs : R & M : Abnormal,2002,WHATMORE LTD,A0054380,20/10/2022,HED0329237,127.9,N,,N,N
Pendle Borough Council,Engineering & Special Projects,Capital Costs,Ren Grant : 1996 Act,CH22,WHATMORE LTD,A0054380,27/10/2022,HED0329455,8750.4,N,,N,N
Pendle Borough Council,Parks & Recreation Services,Premises Related Expense,Grounds : R & M : Day to Day : Routine,2101,THE PLAY INSPECTION COMPANY LTD,A0054674,06/10/2022,PCO0328924,3015.7,N,,N,N
Pendle Borough Council,Operational Services,Indirect Employee Expenses,Training,1211,BEN SHAW TRAINING LIMITED,A0055722,27/10/2022,OPS0329458,12,N,,N,N
Pendle Borough Council,Parks & Recreation Services,Indirect Employee Expenses,Training,1211,BEN SHAW TRAINING LIMITED,A0055722,27/10/2022,PCO0329476,12,N,,N,N
Pendle Borough Council,Operational Services,Indirect Employee Expenses,Emp : Training : General,1217,BEN SHAW TRAINING LIMITED,A0055722,27/10/2022,OPS0329459,12,N,,N,N
Pendle Borough Council,Operational Services,Indirect Employee Expenses,Emp : Training : General,1217,BEN SHAW TRAINING LIMITED,A0055722,27/10/2022,OPS0329474,360,N,,N,N
Pendle Borough Council,Parks & Recreation Services,Premises Related Expense,Grounds : R & M : Day to Day : Routine,2101,PEARSON PANKE LIMITED,A0057343,13/10/2022,PCO0329216,200,N,,N,N
Pendle Borough Council,Operational Services,Premises Related Expense,Bldgs : R & M : Day To Day,2001,CHUBB FIRE & SECURITY LTD,A0057603,20/10/2022,OPS0329288,52,N,,N,N
Pendle Borough Council,Operational Services,Transport Related Expense,Tprt : Repairs : General,3105,UNITED UTILITIES,A0059246,13/10/2022,OPS0329156,23.45,N,,N,N
Pendle Borough Council,Operational Services,Transport Related Expense,Tprt : Repairs : General,3105,UNITED UTILITIES,A0059246,13/10/2022,OPS0329156,23.45,N,,N,N
Pendle Borough Council,Engineering & Special Projects,Agency Costs,Lancashire C C,5102,NSL LIMITED,A0059256,13/10/2022,HED0329094,1760.28,N,,N,N
Pendle Borough Council,Democratic & Legal Services,Premises Related Expense,Grounds : R & M : Day to Day : Routine,2101,NATIONAL WORLD PUBLISHING LTD,A0059640,13/10/2022,DAL0329142,194.4,N,,N,N
Pendle Borough Council,Planning & Building Control,Supplies and Services,Adverts : Statutory Notice,4702,NATIONAL WORLD PUBLISHING LTD,A0059640,13/10/2022,PBC0329132,194.4,N,,N,N
Pendle Borough Council,Planning & Building Control,Supplies and Services,Adverts : Statutory Notice,4702,NATIONAL WORLD PUBLISHING LTD,A0059640,13/10/2022,PBC0329163,340.2,N,,N,N
Pendle Borough Council,Planning & Building Control,Supplies and Services,Adverts : Statutory Notice,4702,NATIONAL WORLD PUBLISHING LTD,A0059640,13/10/2022,PBC0329131,364.5,N,,N,N
Pendle Borough Council,Engineering & Special Projects,Supplies and Services,Adverts : Statutory Notice,4702,NATIONAL WORLD PUBLISHING LTD,A0059640,06/10/2022,HED0329003,388.8,N,,N,N
Pendle Borough Council,Engineering & Special Projects,Supplies and Services,Adverts : Statutory Notice,4702,NATIONAL WORLD PUBLISHING LTD,A0059640,20/10/2022,HED0329241,413.1,N,,N,N
Pendle Borough Council,Democratic & Legal Services,,Other Income : Non-VATable,9303,NATIONAL WORLD PUBLISHING LTD,A0059640,13/10/2022,DAL0329127,218.7,N,,N,N
Pendle Borough Council,Engineering & Special Projects,Transfer Payments,Accommodation ,6103,HILL VIEW (PRIVATE) HOTEL,A0059754,20/10/2022,HED0329234,13955,N,,N,N
Pendle Borough Council,Planning & Building Control,Supplies and Services,EFM : Other Equipment,4003,REDACT - PERSONAL DATA,A0060456,27/10/2022,PBC0329488,151.2,N,,N,N
Pendle Borough Council,Property Services,Premises Related Expense,Bldgs : R & M : Day To Day,2001,MAXIGIENE ENVIRONMENTAL SERVICES LTD,A0060911,06/10/2022,EST0329020,25,N,,N,N
Pendle Borough Council,Property Services,Supplies and Services,Other Expenses,4705,MAXIGIENE ENVIRONMENTAL SERVICES LTD,A0060911,06/10/2022,EST0329018,745,N,,N,N
Pendle Borough Council,Operational Services,Supplies and Services,EFM Materials,4004,CONTAINER CARE SOLUTIONS LIMITED,A0061112,27/10/2022,OPS0329465,1150,N,,N,N
Pendle Borough Council,Operational Services,Supplies and Services,EFM Materials,4004,CONTAINER CARE SOLUTIONS LIMITED,A0061112,27/10/2022,OPS0329464,1680,N,,N,N
Pendle Borough Council,Human Resources,Supplies and Services,Seminars etc All Costs,4601,ABC NORTH WEST LTD,A0061417,20/10/2022,PER0329238,105,N,,N,N
Pendle Borough Council,Planning & Building Control,,Other Income : Non-VATable,9303,REDACT - PERSONAL DATA,A0061565,06/10/2022,PBC0328976,106.92,N,,N,N
Pendle Borough Council,Engineering & Special Projects,Supplies and Services,Mayoral Expenses,4614,DAISY CHAIN (BURNLEY)  LIMITED,A0061684,06/10/2022,HED0328997,312.5,N,,N,N
Pendle Borough Council,Engineering & Special Projects,Supplies and Services,Uniforms,4202,REDACT - PERSONAL DATA,A0062864,27/10/2022,HED0329421,34.17,N,,N,N
Pendle Borough Council,Parks & Recreation Services,Premises Related Expense,Grounds : R & M : Day to Day : Routine,2101,BOUNCEBACK SAFETY SERVICES LTD,A0063002,20/10/2022,PCO0329255,468,N,,N,N
Pendle Borough Council,Engineering & Special Projects,Supplies and Services,Other Expenses,4705,COLNE ROYAL BRITISH LEGION CLUB,A0064455,27/10/2022,HED0329449,360,N,,N,N
Pendle Borough Council,Chief Executives Policy Unit,Supplies and Services,Meeting Expenses,4610,THE RAINHALL CENTRE,A0066193,13/10/2022,COR0329085,45,N,,N,N
Pendle Borough Council,Human Resources,Transport Related Expense,Tprt : Annual Hire Charge,3601,LEX AUTOLEASE LIMITED,A0066530,27/10/2022,PER0329444,343.04,N,,N,N
Pendle Borough Council,Property Services,Premises Related Expense,Bldgs : R & M : Day To Day,2001,SPEAKMAN CONTRACTORS LTD,A0066581,20/10/2022,EST0329345,3332.7,N,,N,N
Pendle Borough Council,Property Services,Premises Related Expense,Bldgs : R & M : Day To Day,2001,SPEAKMAN CONTRACTORS LTD,A0066581,20/10/2022,EST0329345,336.11,N,,N,N
Pendle Borough Council,Property Services,Premises Related Expense,Bldgs : R & M : Day To Day,2001,SPEAKMAN CONTRACTORS LTD,A0066581,20/10/2022,EST0329345,400.45,N,,N,N
Pendle Borough Council,Property Services,Premises Related Expense,Bldgs : R & M : Day To Day,2001,SPEAKMAN CONTRACTORS LTD,A0066581,20/10/2022,EST0329345,55.59,N,,N,N
Pendle Borough Council,Property Services,Premises Related Expense,Bldgs : R & M : Day To Day,2001,SPEAKMAN CONTRACTORS LTD,A0066581,20/10/2022,EST0329345,197.94,N,,N,N
Pendle Borough Council,Property Services,Premises Related Expense,Bldgs : R & M : Day To Day,2001,SPEAKMAN CONTRACTORS LTD,A0066581,20/10/2022,EST0329345,1174,N,,N,N
Pendle Borough Council,Property Services,Premises Related Expense,Bldgs : R & M : Day To Day,2001,SPEAKMAN CONTRACTORS LTD,A0066581,20/10/2022,EST0329345,149.14,N,,N,N
Pendle Borough Council,Engineering & Special Projects,Premises Related Expense,Grounds : R & M : Day to Day : Routine,2101,LIVESEY BUILDING MAINTENANCE CONTRACTORS,A0066865,13/10/2022,HED0329166,98.46,N,,N,N
Pendle Borough Council,Engineering & Special Projects,Premises Related Expense,Grounds : R & M : Day to Day : Routine,2101,LIVESEY BUILDING MAINTENANCE CONTRACTORS,A0066865,13/10/2022,HED0329166,170.77,N,,N,64
Pendle Borough Council,Engineering & Special Projects,Premises Related Expense,Grounds : R & M : Day to Day : Routine,2101,LIVESEY BUILDING MAINTENANCE CONTRACTORS,A0066865,13/10/2022,HED0329166,98.46,N,,N,N
Pendle Borough Council,Engineering & Special Projects,Premises Related Expense,Grounds : R & M : Day to Day : Routine,2101,LIVESEY BUILDING MAINTENANCE CONTRACTORS,A0066865,13/10/2022,HED0329166,170.77,N,,N,N
Pendle Borough Council,Engineering & Special Projects,Premises Related Expense,Grounds : R & M : Day to Day : Routine,2101,LIVESEY BUILDING MAINTENANCE CONTRACTORS,A0066865,13/10/2022,HED0329166,49.23,N,,N,N
Pendle Borough Council,Engineering & Special Projects,Premises Related Expense,Grounds : R & M : Day to Day : Routine,2101,LIVESEY BUILDING MAINTENANCE CONTRACTORS,A0066865,13/10/2022,HED0329166,85.38,N,,N,N
Pendle Borough Council,Engineering & Special Projects,Premises Related Expense,Grounds : R & M : Day to Day : Routine,2101,LIVESEY BUILDING MAINTENANCE CONTRACTORS,A0066865,13/10/2022,HED0329166,73.85,N,,N,N
Pendle Borough Council,Engineering & Special Projects,Premises Related Expense,Grounds : R & M : Day to Day : Routine,2101,LIVESEY BUILDING MAINTENANCE CONTRACTORS,A0066865,13/10/2022,HED0329166,128.08,N,,N,N
Pendle Borough Council,Human Resources,Indirect Employee Expenses,Emp : Medical Expenses,1236,PEOPLE ASSET MANAGEMENT LIMITED,A0067613,06/10/2022,PER0328884,62.84,N,,N,N
Pendle Borough Council,Human Resources,Indirect Employee Expenses,Emp : Medical Expenses,1236,PEOPLE ASSET MANAGEMENT LIMITED,A0067613,27/10/2022,PER0329443,220,N,,N,N
Pendle Borough Council,Engineering & Special Projects,Supplies and Services,#N/A,4424,CHIPSIDE LTD,A0068587,06/10/2022,HED0328892,11.68,N,,N,N
Pendle Borough Council,Parks & Recreation Services,Supplies and Services,Expenditure : Materials,0002,SHERRIFF AMENITY - AGROVISTA UK LIMITED,A0068904,06/10/2022,PCO0328906,1893.6,N,,N,N
Pendle Borough Council,Human Resources,Indirect Employee Expenses,Emp : Medical Expenses,1236,ACTIVE LANCASHIRE LIMITED,A0070149,13/10/2022,PER0329170,2400,N,1159832,N,N
Pendle Borough Council,Engineering & Special Projects,Supplies and Services,Insurances,4701,ZURICH INSURANCE,A0070214,27/10/2022,HED0329413,293.75,N,,N,N
Pendle Borough Council,Parks & Recreation Services,Transport Related Expense,Tprt : Repairs : General,3105,GUY MACHINERY LIMITED,A0070711,06/10/2022,PCO0328917,652.25,N,,N,N
Pendle Borough Council,Engineering & Special Projects,Supplies and Services,#N/A,4425,UNITED UTILITIES WATER PLC,A0072400,20/10/2022,HED0329263,407.36,N,,N,N
Pendle Borough Council,Parks & Recreation Services,Premises Related Expense,Grounds : R & M : Day to Day : Routine,2101,FENLAND LEISURE PRODUCTS LIMITED,A0072950,20/10/2022,PCO0329281,635,N,,N,N
Pendle Borough Council,Parks & Recreation Services,Premises Related Expense,Grounds : R & M : Day to Day : Routine,2101,BRAMM,A0073376,27/10/2022,PCO0329446,135,N,,N,N
Pendle Borough Council,Engineering & Special Projects,Capital Costs,Ren Grant : 1996 Act,CH22,OCEAN BATHROOMS TILES & HEATING LTD,A0075367,20/10/2022,HED0329264,6722,N,,N,N
Pendle Borough Council,Financial Services,Supplies and Services,Other Expenses,4705,WHITAKERS LETTINGS,A0075680,20/10/2022,AAS0329837,850,N,,N,N
Pendle Borough Council,Property Services,Supplies and Services,Other Expenses,4705,BURNLEY AND PENDLE ENERGY ASSESSORS LTD,A0077075,06/10/2022,EST0329025,250,N,,N,N
Pendle Borough Council,Democratic & Legal Services,Supplies and Services,Printing & Stationery,4301,THOMSON REUTERS PROFESSIONAL UK LIMITED,A0077400,06/10/2022,DAL0328891,314,N,,N,N
Pendle Borough Council,Democratic & Legal Services,Supplies and Services,Reference Books Acts,4304,THOMSON REUTERS PROFESSIONAL UK LIMITED,A0077400,13/10/2022,DAL0329093,1099,N,,N,N
Pendle Borough Council,Planning & Building Control,,Other Income : Non-VATable,9303,REDACT - PERSONAL DATA,A0079888,06/10/2022,PBC0328967,136.08,N,,N,N
Pendle Borough Council,Engineering & Special Projects,Supplies and Services,Consultants Fees,4401,IN-SITU,A0079936,06/10/2022,HED0328889,10000,N,,N,N
Pendle Borough Council,Engineering & Special Projects,Capital Costs,Ren Grant : 1996 Act,CH22,NI CONSTRUCTIONS (NW) LIMITED,A0080961,20/10/2022,HED0329226,5303,N,,N,N
Pendle Borough Council,Parks & Recreation Services,Supplies and Services,Expenditure : Materials,0002,RICHARD PEEL GROUNDCARE LIMITED,A0081331,20/10/2022,PCO0329217,310,N,,N,N
Pendle Borough Council,Financial Services,Supplies and Services,Allpay,4422,ALLPAY LIMITED,A0084372,06/10/2022,AAS0329080,10,N,,N,N
Pendle Borough Council,Financial Services,Supplies and Services,Allpay,4422,ALLPAY LIMITED,A0084372,06/10/2022,AAS0329081,10,N,,N,N
Pendle Borough Council,Financial Services,Supplies and Services,Allpay,4422,ALLPAY LIMITED,A0084372,06/10/2022,AAS0329078,18.16,N,,N,N
Pendle Borough Council,Financial Services,Supplies and Services,Allpay,4422,ALLPAY LIMITED,A0084372,06/10/2022,AAS0329077,21.88,N,,N,N
Pendle Borough Council,Financial Services,Supplies and Services,Allpay,4422,ALLPAY LIMITED,A0084372,06/10/2022,AAS0329082,58.49,N,,N,N
Pendle Borough Council,Financial Services,Supplies and Services,Allpay,4422,ALLPAY LIMITED,A0084372,06/10/2022,AAS0329079,1810.66,N,,N,N
Pendle Borough Council,Environmental Health Services,Capital Costs,Capital : Payments,CD14,ELITE PLUMBING,A0084584,06/10/2022,ENV0328875,1896.59,N,,N,N
Pendle Borough Council,Engineering & Special Projects,Supplies and Services,Other Expenses,4705,REDACT - PERSONAL DATA,A0085472,27/10/2022,HED0329448,66.49,N,,N,N
Pendle Borough Council,Engineering & Special Projects,Premises Related Expense,Grounds : R & M : Day to Day : Routine,2101,KEVIN WILKINSON LANDSCAPES LTD,A0085660,06/10/2022,HED0329012,280,N,,N,N
Pendle Borough Council,Engineering & Special Projects,Capital Costs,Capital : Payments,CD14,MARCHBRIDGE BUILDERS LIMITED,A0087284,20/10/2022,HED0329355,128117.52,N,,N,N
Pendle Borough Council,Financial Services,Premises Related Expense,Electricity,2203,EDF ENERGY,A0088932,06/10/2022,AAS0329840,32.82,N,,N,N
Pendle Borough Council,Financial Services,Premises Related Expense,Electricity,2203,EDF ENERGY,A0088932,06/10/2022,AAS0329840,50.98,N,,N,N
Pendle Borough Council,Financial Services,Premises Related Expense,Electricity,2203,EDF ENERGY,A0088932,06/10/2022,AAS0329840,32.35,N,,N,N
Pendle Borough Council,Financial Services,Premises Related Expense,Electricity,2203,EDF ENERGY,A0088932,06/10/2022,AAS0329840,413.41,N,,N,N
Pendle Borough Council,Financial Services,Premises Related Expense,Electricity,2203,EDF ENERGY,A0088932,06/10/2022,AAS0329840,137.65,N,,N,N
Pendle Borough Council,Financial Services,Premises Related Expense,Electricity,2203,EDF ENERGY,A0088932,06/10/2022,AAS0329840,54.12,N,,N,N
Pendle Borough Council,Financial Services,Premises Related Expense,Electricity,2203,EDF ENERGY,A0088932,06/10/2022,AAS0329840,223.63,N,,N,N
Pendle Borough Council,Financial Services,Premises Related Expense,Electricity,2203,EDF ENERGY,A0088932,06/10/2022,AAS0329840,94.1,N,,N,N
Pendle Borough Council,Financial Services,Premises Related Expense,Electricity,2203,EDF ENERGY,A0088932,06/10/2022,AAS0329840,48.9,N,,N,N
Pendle Borough Council,Financial Services,Premises Related Expense,Electricity,2203,EDF ENERGY,A0088932,06/10/2022,AAS0329840,121,N,,N,N
Pendle Borough Council,Financial Services,Premises Related Expense,Electricity,2203,EDF ENERGY,A0088932,06/10/2022,AAS0329840,27.79,N,,N,N
Pendle Borough Council,Financial Services,Premises Related Expense,Electricity,2203,EDF ENERGY,A0088932,06/10/2022,AAS0329840,381.34,N,,N,N
Pendle Borough Council,Financial Services,Premises Related Expense,Electricity,2203,EDF ENERGY,A0088932,06/10/2022,AAS0329840,36.55,N,,N,N
Pendle Borough Council,Financial Services,Premises Related Expense,Electricity,2203,EDF ENERGY,A0088932,06/10/2022,AAS0329840,36.05,N,,N,N
Pendle Borough Council,Financial Services,Premises Related Expense,Electricity,2203,EDF ENERGY,A0088932,06/10/2022,AAS0329840,32.57,N,,N,N
Pendle Borough Council,Financial Services,Premises Related Expense,Electricity,2203,EDF ENERGY,A0088932,06/10/2022,AAS0329840,29.09,N,,N,N
Pendle Borough Council,Financial Services,Premises Related Expense,Electricity,2203,EDF ENERGY,A0088932,06/10/2022,AAS0329840,33.39,N,,N,N
Pendle Borough Council,Financial Services,Premises Related Expense,Electricity,2203,EDF ENERGY,A0088932,06/10/2022,AAS0329840,149.58,N,,N,N
Pendle Borough Council,Financial Services,Premises Related Expense,Electricity,2203,EDF ENERGY,A0088932,06/10/2022,AAS0329840,196.85,N,,N,N
Pendle Borough Council,Financial Services,Premises Related Expense,Electricity,2203,EDF ENERGY,A0088932,06/10/2022,AAS0329840,24.37,N,,N,N
Pendle Borough Council,Financial Services,Premises Related Expense,Electricity,2203,EDF ENERGY,A0088932,06/10/2022,AAS0329840,22.39,N,,N,N
Pendle Borough Council,Financial Services,Premises Related Expense,Electricity,2203,EDF ENERGY,A0088932,06/10/2022,AAS0329840,68.82,N,,N,N
Pendle Borough Council,Financial Services,Premises Related Expense,Electricity,2203,EDF ENERGY,A0088932,06/10/2022,AAS0329840,29.07,N,,N,N
Pendle Borough Council,Financial Services,Premises Related Expense,Electricity,2203,EDF ENERGY,A0088932,06/10/2022,AAS0329840,36.55,N,,N,N
Pendle Borough Council,Financial Services,Premises Related Expense,Electricity,2203,EDF ENERGY,A0088932,06/10/2022,AAS0329840,53.43,N,,N,N
Pendle Borough Council,Financial Services,Premises Related Expense,Electricity,2203,EDF ENERGY,A0088932,06/10/2022,AAS0329840,318.61,N,,N,N
Pendle Borough Council,Financial Services,Premises Related Expense,Electricity,2203,EDF ENERGY,A0088932,06/10/2022,AAS0329840,1287.01,N,,N,N
Pendle Borough Council,Financial Services,Supplies and Services,Other Expenses,4705,EDF ENERGY,A0088932,06/10/2022,AAS0329840,22.39,N,,N,N
Pendle Borough Council,Financial Services,Supplies and Services,Other Expenses,4705,EDF ENERGY,A0088932,06/10/2022,AAS0329840,25.12,N,,N,N
Pendle Borough Council,Engineering & Special Projects,Capital Costs,Capital : Payments,CD14,DAVID MORLEY ARCHITECTS,A0089106,27/10/2022,HED0329450,8274,N,,N,N
Pendle Borough Council,Planning & Building Control,,Other Income : Non-VATable,9303,REDACT - PERSONAL DATA,A0089720,06/10/2022,PBC0328975,25.23,N,,N,N
Pendle Borough Council,Financial Services,Supplies and Services,Subscriptions & Donations,4706,INFORM CPI LIMITED,A0089895,13/10/2022,AAS0329222,247.5,N,,N,N
Pendle Borough Council,Engineering & Special Projects,Supplies and Services,Publicity & advertisement,4704,WE LOVE CREATIVE LIMITED,A0090098,06/10/2022,HED0328998,400,N,,N,N
Pendle Borough Council,Chief Executives Policy Unit,Supplies and Services,Subsidised Training,4721,SMARTYPANTS EXCLUSIVE CHILDCARE LTD,A0090111,06/10/2022,COR0328930,1180.8,N,,N,N
Pendle Borough Council,Engineering & Special Projects,Capital Costs,Capital : Payments,CD14,WARD HADAWAY SOLICITORS,A0090122,27/10/2022,HED0329411,3867,N,,N,N
Pendle Borough Council,Financial Services,Transport Related Expense,Diesel Oil,3202,FUELMATE LTD,A0090265,04/10/2022,AAS0329556,83.03,N,,N,N
Pendle Borough Council,Financial Services,Transport Related Expense,Diesel Oil,3202,FUELMATE LTD,A0090265,11/10/2022,AAS0329557,229.88,N,,N,N
Pendle Borough Council,Financial Services,Transport Related Expense,Diesel Oil,3202,FUELMATE LTD,A0090265,18/10/2022,AAS0329558,233.73,N,,N,N
Pendle Borough Council,Financial Services,Transport Related Expense,Diesel Oil,3202,FUELMATE LTD,A0090265,25/10/2022,AAS0329559,323.89,N,,N,N
Pendle Borough Council,Financial Services,Transport Related Expense,Diesel Oil,3202,FUELMATE LTD,A0090265,04/10/2022,AAS0329556,437.34,N,,N,N
Pendle Borough Council,Financial Services,Transport Related Expense,Diesel Oil,3202,FUELMATE LTD,A0090265,25/10/2022,AAS0329559,206.18,N,,N,N
Pendle Borough Council,Financial Services,Transport Related Expense,Diesel Oil,3202,FUELMATE LTD,A0090265,11/10/2022,AAS0329557,286.17,N,,N,N
Pendle Borough Council,Financial Services,Transport Related Expense,Diesel Oil,3202,FUELMATE LTD,A0090265,18/10/2022,AAS0329558,413.53,N,,N,N
Pendle Borough Council,Financial Services,Transport Related Expense,Diesel Oil,3202,FUELMATE LTD,A0090265,04/10/2022,AAS0329556,441.17,N,,N,N
Pendle Borough Council,Financial Services,Transport Related Expense,Diesel Oil,3202,FUELMATE LTD,A0090265,11/10/2022,AAS0329557,333.34,N,,N,N
Pendle Borough Council,Financial Services,Transport Related Expense,Diesel Oil,3202,FUELMATE LTD,A0090265,25/10/2022,AAS0329559,353.53,N,,N,N
Pendle Borough Council,Financial Services,Transport Related Expense,Diesel Oil,3202,FUELMATE LTD,A0090265,18/10/2022,AAS0329558,366.28,N,,N,N
Pendle Borough Council,Financial Services,Transport Related Expense,Diesel Oil,3202,FUELMATE LTD,A0090265,04/10/2022,AAS0329556,374.02,N,,N,N
Pendle Borough Council,Financial Services,Transport Related Expense,Diesel Oil,3202,FUELMATE LTD,A0090265,25/10/2022,AAS0329559,345.98,N,,N,N
Pendle Borough Council,Financial Services,Transport Related Expense,Diesel Oil,3202,FUELMATE LTD,A0090265,18/10/2022,AAS0329558,348.1,N,,N,N
Pendle Borough Council,Financial Services,Transport Related Expense,Diesel Oil,3202,FUELMATE LTD,A0090265,11/10/2022,AAS0329557,356.97,N,,N,N
Pendle Borough Council,Financial Services,Transport Related Expense,Diesel Oil,3202,FUELMATE LTD,A0090265,04/10/2022,AAS0329556,373.6,N,,N,N
Pendle Borough Council,Financial Services,Transport Related Expense,Diesel Oil,3202,FUELMATE LTD,A0090265,11/10/2022,AAS0329557,220.5,N,,N,N
Pendle Borough Council,Financial Services,Transport Related Expense,Diesel Oil,3202,FUELMATE LTD,A0090265,04/10/2022,AAS0329556,271.98,N,,N,N
Pendle Borough Council,Financial Services,Transport Related Expense,Diesel Oil,3202,FUELMATE LTD,A0090265,25/10/2022,AAS0329559,338.23,N,,N,N
Pendle Borough Council,Financial Services,Transport Related Expense,Diesel Oil,3202,FUELMATE LTD,A0090265,18/10/2022,AAS0329558,401.93,N,,N,N
Pendle Borough Council,Financial Services,Transport Related Expense,Diesel Oil,3202,FUELMATE LTD,A0090265,11/10/2022,AAS0329557,317.85,N,,N,N
Pendle Borough Council,Financial Services,Transport Related Expense,Diesel Oil,3202,FUELMATE LTD,A0090265,25/10/2022,AAS0329559,321.85,N,,N,N
Pendle Borough Council,Financial Services,Transport Related Expense,Diesel Oil,3202,FUELMATE LTD,A0090265,18/10/2022,AAS0329558,411.5,N,,N,N
Pendle Borough Council,Financial Services,Transport Related Expense,Diesel Oil,3202,FUELMATE LTD,A0090265,04/10/2022,AAS0329556,448.82,N,,N,N
Pendle Borough Council,Financial Services,Transport Related Expense,Diesel Oil,3202,FUELMATE LTD,A0090265,11/10/2022,AAS0329557,242.88,N,,N,N
Pendle Borough Council,Financial Services,Transport Related Expense,Diesel Oil,3202,FUELMATE LTD,A0090265,04/10/2022,AAS0329556,294.4,N,,N,N
Pendle Borough Council,Financial Services,Transport Related Expense,Diesel Oil,3202,FUELMATE LTD,A0090265,18/10/2022,AAS0329558,311.05,N,,N,N
Pendle Borough Council,Financial Services,Transport Related Expense,Diesel Oil,3202,FUELMATE LTD,A0090265,25/10/2022,AAS0329559,316.5,N,,N,N
Pendle Borough Council,Financial Services,Transport Related Expense,Diesel Oil,3202,FUELMATE LTD,A0090265,11/10/2022,AAS0329557,123.5,N,,N,N
Pendle Borough Council,Financial Services,Transport Related Expense,Diesel Oil,3202,FUELMATE LTD,A0090265,18/10/2022,AAS0329558,150.48,N,,N,N
Pendle Borough Council,Financial Services,Transport Related Expense,Diesel Oil,3202,FUELMATE LTD,A0090265,25/10/2022,AAS0329559,245.3,N,,N,N
Pendle Borough Council,Financial Services,Transport Related Expense,Diesel Oil,3202,FUELMATE LTD,A0090265,11/10/2022,AAS0329557,280.38,N,,N,N
Pendle Borough Council,Financial Services,Transport Related Expense,Diesel Oil,3202,FUELMATE LTD,A0090265,18/10/2022,AAS0329558,311.56,N,,N,N
Pendle Borough Council,Financial Services,Transport Related Expense,Diesel Oil,3202,FUELMATE LTD,A0090265,04/10/2022,AAS0329556,425.27,N,,N,N
Pendle Borough Council,Financial Services,Transport Related Expense,Diesel Oil,3202,FUELMATE LTD,A0090265,25/10/2022,AAS0329559,245.36,N,,N,N
Pendle Borough Council,Financial Services,Transport Related Expense,Diesel Oil,3202,FUELMATE LTD,A0090265,11/10/2022,AAS0329557,318.22,N,,N,N
Pendle Borough Council,Financial Services,Transport Related Expense,Diesel Oil,3202,FUELMATE LTD,A0090265,18/10/2022,AAS0329558,332.7,N,,N,N
Pendle Borough Council,Financial Services,Transport Related Expense,Diesel Oil,3202,FUELMATE LTD,A0090265,04/10/2022,AAS0329556,351.78,N,,N,N
Pendle Borough Council,Financial Services,Transport Related Expense,Diesel Oil,3202,FUELMATE LTD,A0090265,18/10/2022,AAS0329558,111.8,N,,N,N
Pendle Borough Council,Financial Services,Transport Related Expense,Diesel Oil,3202,FUELMATE LTD,A0090265,25/10/2022,AAS0329559,161.52,N,,N,N
Pendle Borough Council,Financial Services,Transport Related Expense,Diesel Oil,3202,FUELMATE LTD,A0090265,04/10/2022,AAS0329556,260.76,N,,N,N
Pendle Borough Council,Financial Services,Transport Related Expense,Diesel Oil,3202,FUELMATE LTD,A0090265,11/10/2022,AAS0329557,143.54,N,,N,N
Pendle Borough Council,Financial Services,Transport Related Expense,Diesel Oil,3202,FUELMATE LTD,A0090265,18/10/2022,AAS0329558,159.88,N,,N,N
Pendle Borough Council,Financial Services,Transport Related Expense,Diesel Oil,3202,FUELMATE LTD,A0090265,04/10/2022,AAS0329556,313,N,,N,N
Pendle Borough Council,Financial Services,Transport Related Expense,Diesel Oil,3202,FUELMATE LTD,A0090265,25/10/2022,AAS0329559,327.57,N,,N,N
Pendle Borough Council,Financial Services,Transport Related Expense,Diesel Oil,3202,FUELMATE LTD,A0090265,25/10/2022,AAS0329559,103.04,N,,N,N
Pendle Borough Council,Financial Services,Transport Related Expense,Diesel Oil,3202,FUELMATE LTD,A0090265,04/10/2022,AAS0329556,215.26,N,,N,N
Pendle Borough Council,Financial Services,Transport Related Expense,Diesel Oil,3202,FUELMATE LTD,A0090265,18/10/2022,AAS0329558,218.99,N,,N,N
Pendle Borough Council,Financial Services,Transport Related Expense,Diesel Oil,3202,FUELMATE LTD,A0090265,11/10/2022,AAS0329557,231.23,N,,N,N
Pendle Borough Council,Financial Services,Transport Related Expense,Diesel Oil,3202,FUELMATE LTD,A0090265,25/10/2022,AAS0329559,91.48,N,,N,N
Pendle Borough Council,Financial Services,Transport Related Expense,Diesel Oil,3202,FUELMATE LTD,A0090265,11/10/2022,AAS0329557,246.84,N,,N,N
Pendle Borough Council,Financial Services,Transport Related Expense,Diesel Oil,3202,FUELMATE LTD,A0090265,04/10/2022,AAS0329556,284.53,N,,N,N
Pendle Borough Council,Financial Services,Transport Related Expense,Diesel Oil,3202,FUELMATE LTD,A0090265,18/10/2022,AAS0329558,338.71,N,,N,N
Pendle Borough Council,Financial Services,Transport Related Expense,Diesel Oil,3202,FUELMATE LTD,A0090265,11/10/2022,AAS0329557,293.11,N,,N,N
Pendle Borough Council,Financial Services,Transport Related Expense,Diesel Oil,3202,FUELMATE LTD,A0090265,04/10/2022,AAS0329556,333.57,N,,N,N
Pendle Borough Council,Financial Services,Transport Related Expense,Diesel Oil,3202,FUELMATE LTD,A0090265,18/10/2022,AAS0329558,376.98,N,,N,N
Pendle Borough Council,Financial Services,Transport Related Expense,Diesel Oil,3202,FUELMATE LTD,A0090265,25/10/2022,AAS0329559,127.22,N,,N,N
Pendle Borough Council,Financial Services,Transport Related Expense,Diesel Oil,3202,FUELMATE LTD,A0090265,25/10/2022,AAS0329559,97.62,N,,N,N
Pendle Borough Council,Financial Services,Transport Related Expense,Diesel Oil,3202,FUELMATE LTD,A0090265,18/10/2022,AAS0329558,171.04,N,,N,N
Pendle Borough Council,Financial Services,Transport Related Expense,Diesel Oil,3202,FUELMATE LTD,A0090265,11/10/2022,AAS0329557,177.19,N,,N,N
Pendle Borough Council,Financial Services,Transport Related Expense,Diesel Oil,3202,FUELMATE LTD,A0090265,04/10/2022,AAS0329556,220.32,N,,N,N
Pendle Borough Council,Financial Services,Transport Related Expense,Diesel Oil,3202,FUELMATE LTD,A0090265,11/10/2022,AAS0329557,135.99,N,,N,N
Pendle Borough Council,Financial Services,Transport Related Expense,Diesel Oil,3202,FUELMATE LTD,A0090265,25/10/2022,AAS0329559,139.6,N,,N,N
Pendle Borough Council,Financial Services,Transport Related Expense,Diesel Oil,3202,FUELMATE LTD,A0090265,18/10/2022,AAS0329558,145.64,N,,N,N
Pendle Borough Council,Financial Services,Transport Related Expense,Diesel Oil,3202,FUELMATE LTD,A0090265,18/10/2022,AAS0329558,105.9,N,,N,N
Pendle Borough Council,Financial Services,Transport Related Expense,Diesel Oil,3202,FUELMATE LTD,A0090265,11/10/2022,AAS0329557,179.72,N,,N,N
Pendle Borough Council,Financial Services,Transport Related Expense,Diesel Oil,3202,FUELMATE LTD,A0090265,25/10/2022,AAS0329559,248.11,N,,N,N
Pendle Borough Council,Financial Services,Transport Related Expense,Diesel Oil,3202,FUELMATE LTD,A0090265,04/10/2022,AAS0329556,282.42,N,,N,N
Pendle Borough Council,Financial Services,Transport Related Expense,Diesel Oil,3202,FUELMATE LTD,A0090265,18/10/2022,AAS0329558,64.87,N,,N,N
Pendle Borough Council,Financial Services,Transport Related Expense,Diesel Oil,3202,FUELMATE LTD,A0090265,04/10/2022,AAS0329556,67.13,N,,N,N
Pendle Borough Council,Financial Services,Transport Related Expense,Diesel Oil,3202,FUELMATE LTD,A0090265,25/10/2022,AAS0329559,74.81,N,,N,N
Pendle Borough Council,Financial Services,Transport Related Expense,Diesel Oil,3202,FUELMATE LTD,A0090265,04/10/2022,AAS0329556,42.47,N,,N,N
Pendle Borough Council,Financial Services,Transport Related Expense,Diesel Oil,3202,FUELMATE LTD,A0090265,18/10/2022,AAS0329558,52.06,N,,N,N
Pendle Borough Council,Financial Services,Transport Related Expense,Diesel Oil,3202,FUELMATE LTD,A0090265,18/10/2022,AAS0329558,80.44,N,,N,N
Pendle Borough Council,Financial Services,Transport Related Expense,Diesel Oil,3202,FUELMATE LTD,A0090265,11/10/2022,AAS0329557,106.9,N,,N,N
Pendle Borough Council,Financial Services,Transport Related Expense,Diesel Oil,3202,FUELMATE LTD,A0090265,25/10/2022,AAS0329559,65.55,N,,N,N
Pendle Borough Council,Financial Services,Transport Related Expense,Diesel Oil,3202,FUELMATE LTD,A0090265,11/10/2022,AAS0329557,81.64,N,,N,N
Pendle Borough Council,Financial Services,Transport Related Expense,Diesel Oil,3202,FUELMATE LTD,A0090265,25/10/2022,AAS0329559,86.01,N,,N,N
Pendle Borough Council,Financial Services,Transport Related Expense,Diesel Oil,3202,FUELMATE LTD,A0090265,11/10/2022,AAS0329557,86.59,N,,N,N
Pendle Borough Council,Financial Services,Transport Related Expense,Diesel Oil,3202,FUELMATE LTD,A0090265,18/10/2022,AAS0329558,48.11,N,,N,N
Pendle Borough Council,Financial Services,Transport Related Expense,Diesel Oil,3202,FUELMATE LTD,A0090265,25/10/2022,AAS0329559,73.97,N,,N,N
Pendle Borough Council,Financial Services,Transport Related Expense,Diesel Oil,3202,FUELMATE LTD,A0090265,18/10/2022,AAS0329558,81.95,N,,N,N
Pendle Borough Council,Financial Services,Transport Related Expense,Diesel Oil,3202,FUELMATE LTD,A0090265,04/10/2022,AAS0329556,82.99,N,,N,N
Pendle Borough Council,Financial Services,Transport Related Expense,Diesel Oil,3202,FUELMATE LTD,A0090265,11/10/2022,AAS0329557,83.67,N,,N,N
Pendle Borough Council,Financial Services,Transport Related Expense,Diesel Oil,3202,FUELMATE LTD,A0090265,25/10/2022,AAS0329559,38.23,N,,N,N
Pendle Borough Council,Financial Services,Transport Related Expense,Diesel Oil,3202,FUELMATE LTD,A0090265,04/10/2022,AAS0329556,118.27,N,,N,N
Pendle Borough Council,Financial Services,Transport Related Expense,Diesel Oil,3202,FUELMATE LTD,A0090265,11/10/2022,AAS0329557,122.79,N,,N,N
Pendle Borough Council,Financial Services,Transport Related Expense,Diesel Oil,3202,FUELMATE LTD,A0090265,18/10/2022,AAS0329558,131.5,N,,N,N
Pendle Borough Council,Financial Services,Transport Related Expense,Diesel Oil,3202,FUELMATE LTD,A0090265,18/10/2022,AAS0329558,68.15,N,,N,N
Pendle Borough Council,Financial Services,Transport Related Expense,Diesel Oil,3202,FUELMATE LTD,A0090265,04/10/2022,AAS0329556,71.82,N,,N,N
Pendle Borough Council,Financial Services,Transport Related Expense,Diesel Oil,3202,FUELMATE LTD,A0090265,11/10/2022,AAS0329557,72.6,N,,N,N
Pendle Borough Council,Financial Services,Transport Related Expense,Diesel Oil,3202,FUELMATE LTD,A0090265,25/10/2022,AAS0329559,88.64,N,,N,N
Pendle Borough Council,Financial Services,Transport Related Expense,Diesel Oil,3202,FUELMATE LTD,A0090265,04/10/2022,AAS0329556,49.46,N,,N,N
Pendle Borough Council,Financial Services,Transport Related Expense,Diesel Oil,3202,FUELMATE LTD,A0090265,11/10/2022,AAS0329557,57.98,N,,N,N
Pendle Borough Council,Financial Services,Transport Related Expense,Diesel Oil,3202,FUELMATE LTD,A0090265,25/10/2022,AAS0329559,61.95,N,,N,N
Pendle Borough Council,Financial Services,Transport Related Expense,Diesel Oil,3202,FUELMATE LTD,A0090265,18/10/2022,AAS0329558,66.21,N,,N,N
Pendle Borough Council,Financial Services,Transport Related Expense,Diesel Oil,3202,FUELMATE LTD,A0090265,18/10/2022,AAS0329558,71.97,N,,N,N
Pendle Borough Council,Financial Services,Transport Related Expense,Diesel Oil,3202,FUELMATE LTD,A0090265,25/10/2022,AAS0329559,75.34,N,,N,N
Pendle Borough Council,Financial Services,Transport Related Expense,Diesel Oil,3202,FUELMATE LTD,A0090265,04/10/2022,AAS0329556,75.36,N,,N,N
Pendle Borough Council,Financial Services,Transport Related Expense,Diesel Oil,3202,FUELMATE LTD,A0090265,11/10/2022,AAS0329557,75.41,N,,N,N
Pendle Borough Council,Financial Services,Transport Related Expense,Diesel Oil,3202,FUELMATE LTD,A0090265,11/10/2022,AAS0329557,47.59,N,,N,N
Pendle Borough Council,Financial Services,Transport Related Expense,Diesel Oil,3202,FUELMATE LTD,A0090265,18/10/2022,AAS0329558,52.06,N,,N,N
Pendle Borough Council,Financial Services,Transport Related Expense,Diesel Oil,3202,FUELMATE LTD,A0090265,25/10/2022,AAS0329559,68.82,N,,N,N
Pendle Borough Council,Financial Services,Transport Related Expense,Diesel Oil,3202,FUELMATE LTD,A0090265,04/10/2022,AAS0329556,87.01,N,,N,N
Pendle Borough Council,Financial Services,Transport Related Expense,Diesel Oil,3202,FUELMATE LTD,A0090265,25/10/2022,AAS0329559,16.06,N,,N,N
Pendle Borough Council,Financial Services,Transport Related Expense,Diesel Oil,3202,FUELMATE LTD,A0090265,18/10/2022,AAS0329558,43.29,N,,N,N
Pendle Borough Council,Financial Services,Transport Related Expense,Diesel Oil,3202,FUELMATE LTD,A0090265,11/10/2022,AAS0329557,48.75,N,,N,N
Pendle Borough Council,Financial Services,Transport Related Expense,Diesel Oil,3202,FUELMATE LTD,A0090265,04/10/2022,AAS0329556,30.83,N,,N,N
Pendle Borough Council,Financial Services,Transport Related Expense,Diesel Oil,3202,FUELMATE LTD,A0090265,25/10/2022,AAS0329559,33.64,N,,N,N
Pendle Borough Council,Financial Services,Transport Related Expense,Diesel Oil,3202,FUELMATE LTD,A0090265,18/10/2022,AAS0329558,33.8,N,,N,N
Pendle Borough Council,Financial Services,Transport Related Expense,Diesel Oil,3202,FUELMATE LTD,A0090265,11/10/2022,AAS0329557,53.57,N,,N,N
Pendle Borough Council,Financial Services,Transport Related Expense,Diesel Oil,3202,FUELMATE LTD,A0090265,11/10/2022,AAS0329557,35.62,N,,N,N
Pendle Borough Council,Financial Services,Transport Related Expense,Diesel Oil,3202,FUELMATE LTD,A0090265,25/10/2022,AAS0329559,74.81,N,,N,N
Pendle Borough Council,Financial Services,Transport Related Expense,Diesel Oil,3202,FUELMATE LTD,A0090265,11/10/2022,AAS0329557,82.84,N,,N,N
Pendle Borough Council,Financial Services,Transport Related Expense,Diesel Oil,3202,FUELMATE LTD,A0090265,11/10/2022,AAS0329557,72.19,N,,N,N
Pendle Borough Council,Financial Services,Transport Related Expense,Diesel Oil,3202,FUELMATE LTD,A0090265,04/10/2022,AAS0329556,77.37,N,,N,N
Pendle Borough Council,Financial Services,Transport Related Expense,Diesel Oil,3202,FUELMATE LTD,A0090265,25/10/2022,AAS0329559,89.02,N,,N,N
Pendle Borough Council,Financial Services,Transport Related Expense,Diesel Oil,3202,FUELMATE LTD,A0090265,18/10/2022,AAS0329558,69.77,N,,N,N
Pendle Borough Council,Financial Services,Transport Related Expense,Diesel Oil,3202,FUELMATE LTD,A0090265,04/10/2022,AAS0329556,80.46,N,,N,N
Pendle Borough Council,Financial Services,Transport Related Expense,Diesel Oil,3202,FUELMATE LTD,A0090265,25/10/2022,AAS0329559,76.81,N,,N,N
Pendle Borough Council,Financial Services,Transport Related Expense,Diesel Oil,3202,FUELMATE LTD,A0090265,04/10/2022,AAS0329556,76.98,N,,N,N
Pendle Borough Council,Financial Services,Transport Related Expense,Diesel Oil,3202,FUELMATE LTD,A0090265,18/10/2022,AAS0329558,78.5,N,,N,N
Pendle Borough Council,Financial Services,Transport Related Expense,Diesel Oil,3202,FUELMATE LTD,A0090265,18/10/2022,AAS0329558,71.18,N,,N,N
Pendle Borough Council,Financial Services,Transport Related Expense,Diesel Oil,3202,FUELMATE LTD,A0090265,25/10/2022,AAS0329559,82.87,N,,N,N
Pendle Borough Council,Financial Services,Transport Related Expense,Diesel Oil,3202,FUELMATE LTD,A0090265,04/10/2022,AAS0329556,84.35,N,,N,N
Pendle Borough Council,Financial Services,Transport Related Expense,Diesel Oil,3202,FUELMATE LTD,A0090265,25/10/2022,AAS0329559,61.83,N,,N,N
Pendle Borough Council,Financial Services,Transport Related Expense,Diesel Oil,3202,FUELMATE LTD,A0090265,04/10/2022,AAS0329556,67.36,N,,N,N
Pendle Borough Council,Financial Services,Transport Related Expense,Diesel Oil,3202,FUELMATE LTD,A0090265,11/10/2022,AAS0329557,68.5,N,,N,N
Pendle Borough Council,Financial Services,Transport Related Expense,Diesel Oil,3202,FUELMATE LTD,A0090265,11/10/2022,AAS0329557,81,N,,N,N
Pendle Borough Council,Financial Services,Transport Related Expense,Diesel Oil,3202,FUELMATE LTD,A0090265,11/10/2022,AAS0329557,47.94,N,,N,N
Pendle Borough Council,Financial Services,Transport Related Expense,Diesel Oil,3202,FUELMATE LTD,A0090265,04/10/2022,AAS0329556,51.62,N,,N,N
Pendle Borough Council,Financial Services,Transport Related Expense,Diesel Oil,3202,FUELMATE LTD,A0090265,18/10/2022,AAS0329558,59.1,N,,N,N
Pendle Borough Council,Financial Services,Transport Related Expense,Diesel Oil,3202,FUELMATE LTD,A0090265,25/10/2022,AAS0329559,143.65,N,,N,N
Pendle Borough Council,Operational Services,Supplies and Services,Printing & Stationery,4301,M A E MORRIS T/A A-P DESIGN & PRINT,A0090443,13/10/2022,OPS0329147,664,N,,N,N
Pendle Borough Council,Operational Services,Indirect Employee Expenses,Training,1211,R S ASBESTOS LIMITED,A0090548,06/10/2022,OPS0328895,125,N,,N,N
Pendle Borough Council,Operational Services,Supplies and Services,Other Expenses,4705,R S ASBESTOS LIMITED,A0090548,06/10/2022,OPS0328895,125,N,,N,N
Pendle Borough Council,Parks & Recreation Services,Premises Related Expense,Grounds : R & M : Day to Day : Routine,2101,J B STEVENSON,A0090609,20/10/2022,PCO0329272,203,N,,N,N
Pendle Borough Council,Revenues Services,Supplies and Services,Consultants Fees,4401,PS&P LTD,A0090720,20/10/2022,TRE0329371,14,N,,N,N
Pendle Borough Council,Financial Services,Premises Related Expense,Gas,2202,GAZPROM ENERGY,A0090838,31/10/2022,AAS0329846,15.34,N,,N,N
Pendle Borough Council,Financial Services,Premises Related Expense,Gas,2202,GAZPROM ENERGY,A0090838,31/10/2022,AAS0329847,33.27,N,,N,N
Pendle Borough Council,Financial Services,Premises Related Expense,Gas,2202,GAZPROM ENERGY,A0090838,31/10/2022,AAS0329859,75.96,N,,N,N
Pendle Borough Council,Financial Services,Premises Related Expense,Gas,2202,GAZPROM ENERGY,A0090838,31/10/2022,AAS0329860,116.32,N,,N,N
Pendle Borough Council,Financial Services,Premises Related Expense,Gas,2202,GAZPROM ENERGY,A0090838,31/10/2022,AAS0329854,187.25,N,,N,N
Pendle Borough Council,Financial Services,Premises Related Expense,Gas,2202,GAZPROM ENERGY,A0090838,31/10/2022,AAS0329858,251.26,N,,N,N
Pendle Borough Council,Financial Services,Premises Related Expense,Gas,2202,GAZPROM ENERGY,A0090838,31/10/2022,AAS0329861,72.95,N,,N,N
Pendle Borough Council,Financial Services,Premises Related Expense,Gas,2202,GAZPROM ENERGY,A0090838,31/10/2022,AAS0329843,141.85,N,,N,N
Pendle Borough Council,Financial Services,Premises Related Expense,Gas,2202,GAZPROM ENERGY,A0090838,31/10/2022,AAS0329848,27.24,N,,N,N
Pendle Borough Council,Financial Services,Premises Related Expense,Gas,2202,GAZPROM ENERGY,A0090838,31/10/2022,AAS0329845,47.77,N,,N,N
Pendle Borough Council,Financial Services,Premises Related Expense,Gas,2202,GAZPROM ENERGY,A0090838,31/10/2022,AAS0329844,30.13,N,,N,N
Pendle Borough Council,Financial Services,Premises Related Expense,Gas,2202,GAZPROM ENERGY,A0090838,31/10/2022,AAS0329856,120.8,N,,N,N
Pendle Borough Council,Financial Services,Premises Related Expense,Gas,2202,GAZPROM ENERGY,A0090838,31/10/2022,AAS0329851,16.38,N,,N,N
Pendle Borough Council,Property Services,Capital Costs,Capital : Payments,CD14,H2O FLOWTECH LIMITED,A0090845,20/10/2022,EST0329305,378.72,N,,N,N
Pendle Borough Council,Parks & Recreation Services,Premises Related Expense,Grounds : R & M : Day to Day : Routine,2101,SUPER AUTO SAVER,A0090951,27/10/2022,PCO0329486,16,N,,N,N
Pendle Borough Council,Engineering & Special Projects,Supplies and Services,Other Expenses,4705,BRITISH GEOLOGICAL SURVEY (NERC),A0091238,27/10/2022,HED0329452,246.06,N,,N,N
Pendle Borough Council,Parks & Recreation Services,Premises Related Expense,Grounds : R & M : Day to Day : Routine,2101,DEFIBSHOP - IMPERATIVE TRAINING LTD,A0091291,06/10/2022,PCO0328918,62.45,N,,N,N
Pendle Borough Council,Engineering & Special Projects,Capital Costs,Ren Grant : 1996 Act,CH22,THE EXCELLENT RAMP SYSTEM LIMITED,A0091363,20/10/2022,HED0329268,3875,N,,N,N
Pendle Borough Council,Engineering & Special Projects,Capital Costs,Ren Grant : 1996 Act,CH22,THE EXCELLENT RAMP SYSTEM LIMITED,A0091363,20/10/2022,HED0329266,8600,N,,N,N
Pendle Borough Council,Engineering & Special Projects,Capital Costs,Ren Grant : 1996 Act,CH22,THE EXCELLENT RAMP SYSTEM LIMITED,A0091363,20/10/2022,HED0329267,8600,N,,N,N
Pendle Borough Council,Operational Services,,Fees Income : Non-VATable,9302,PERMISERV LIMITED,A0091396,13/10/2022,OPS0329155,134.08,N,,N,N
Pendle Borough Council,Parks & Recreation Services,Premises Related Expense,Grounds : R & M : Day to Day : Routine,2101,MARTINS COUNTRYSIDE CONTRACTING LIMITED,A0091415,27/10/2022,PCO0329482,575,N,,N,N
Pendle Borough Council,Parks & Recreation Services,Premises Related Expense,Grounds : R & M : Day to Day : Routine,2101,MARTINS COUNTRYSIDE CONTRACTING LIMITED,A0091415,27/10/2022,PCO0329481,462,N,,N,N
Pendle Borough Council,Planning & Building Control,,Other Income : Non-VATable,9303,REDACT - PERSONAL DATA,A0091450,06/10/2022,PBC0328973,105.84,N,,N,N
Pendle Borough Council,Democratic & Legal Services,Supplies and Services,Other Expenses,4705,SPECIALISED CANVAS SERVICES LTD,A0091459,13/10/2022,DAL0329145,155.49,N,,N,N
Pendle Borough Council,Planning & Building Control,,Fees Income : Non-VATable,9302,PORTALPLANQUEST LIMITED,A0091554,20/10/2022,PBC0329346,204,N,,N,N
Pendle Borough Council,Parks & Recreation Services,Agency Staff,Emp : Basic Wages,1001,NW RECRUITMENT SERVICES LIMITED,A0091588,06/10/2022,PCO0328923,2050.21,N,,N,N
Pendle Borough Council,Parks & Recreation Services,Agency Staff,Emp : Basic Wages,1001,NW RECRUITMENT SERVICES LIMITED,A0091588,20/10/2022,PCO0329280,2424.9,N,,N,N
Pendle Borough Council,Parks & Recreation Services,Agency Staff,Emp : Basic Wages,1001,NW RECRUITMENT SERVICES LIMITED,A0091588,13/10/2022,PCO0329214,2739.42,N,,N,N
Pendle Borough Council,Parks & Recreation Services,Agency Staff,Emp : Basic Wages,1001,NW RECRUITMENT SERVICES LIMITED,A0091588,27/10/2022,PCO0329485,3052.5,N,,N,N
Pendle Borough Council,Parks & Recreation Services,Agency Staff,Emp : Agency Wages,1004,NW RECRUITMENT SERVICES LIMITED,A0091588,20/10/2022,PCO0329279,106,N,,N,N
Pendle Borough Council,Parks & Recreation Services,Agency Staff,Emp : Agency Wages,1004,NW RECRUITMENT SERVICES LIMITED,A0091588,13/10/2022,PCO0329213,231.88,N,,N,N
Pendle Borough Council,Parks & Recreation Services,Agency Staff,Emp : Agency Wages,1004,NW RECRUITMENT SERVICES LIMITED,A0091588,06/10/2022,PCO0328921,318.01,N,,N,N
Pendle Borough Council,Parks & Recreation Services,Agency Staff,Emp : Agency Wages,1004,NW RECRUITMENT SERVICES LIMITED,A0091588,06/10/2022,PCO0328922,354.44,N,,N,N
Pendle Borough Council,Operational Services,Agency Staff,Emp : Agency Wages,1004,NW RECRUITMENT SERVICES LIMITED,A0091588,20/10/2022,OPS0329244,2767.83,N,,N,N
Pendle Borough Council,Operational Services,Agency Staff,Emp : Agency Wages,1004,NW RECRUITMENT SERVICES LIMITED,A0091588,06/10/2022,OPS0328902,2966.66,N,,N,N
Pendle Borough Council,Operational Services,Agency Staff,Emp : Agency Wages,1004,NW RECRUITMENT SERVICES LIMITED,A0091588,27/10/2022,OPS0329471,3061.04,N,,N,N
Pendle Borough Council,Operational Services,Agency Staff,Emp : Agency Wages,1004,NW RECRUITMENT SERVICES LIMITED,A0091588,06/10/2022,OPS0328904,3133.56,N,,N,N
Pendle Borough Council,Operational Services,Agency Staff,Emp : Agency Wages,1004,NW RECRUITMENT SERVICES LIMITED,A0091588,06/10/2022,OPS0328903,3613.75,N,,N,N
Pendle Borough Council,Operational Services,Agency Staff,Emp : Agency Wages,1004,NW RECRUITMENT SERVICES LIMITED,A0091588,20/10/2022,OPS0329245,3888.81,N,,N,N
Pendle Borough Council,Operational Services,Agency Staff,Emp : Agency Wages,1004,NW RECRUITMENT SERVICES LIMITED,A0091588,27/10/2022,OPS0329471,1039.96,N,,N,N
Pendle Borough Council,Operational Services,Agency Staff,Emp : Agency Wages,1004,NW RECRUITMENT SERVICES LIMITED,A0091588,06/10/2022,OPS0328902,1321.6,N,,N,N
Pendle Borough Council,Operational Services,Agency Staff,Emp : Agency Wages,1004,NW RECRUITMENT SERVICES LIMITED,A0091588,06/10/2022,OPS0328903,1388.21,N,,N,N
Pendle Borough Council,Operational Services,Agency Staff,Emp : Agency Wages,1004,NW RECRUITMENT SERVICES LIMITED,A0091588,20/10/2022,OPS0329244,1456.18,N,,N,N
Pendle Borough Council,Operational Services,Agency Staff,Emp : Agency Wages,1004,NW RECRUITMENT SERVICES LIMITED,A0091588,06/10/2022,OPS0328904,1500.86,N,,N,N
Pendle Borough Council,Operational Services,Agency Staff,Emp : Agency Wages,1004,NW RECRUITMENT SERVICES LIMITED,A0091588,20/10/2022,OPS0329245,1747.07,N,,N,N
Pendle Borough Council,Operational Services,Agency Staff,Emp : Agency Wages,1004,NW RECRUITMENT SERVICES LIMITED,A0091588,20/10/2022,OPS0329245,98.23,N,,N,N
Pendle Borough Council,Operational Services,Agency Staff,Emp : Agency Wages,1004,NW RECRUITMENT SERVICES LIMITED,A0091588,27/10/2022,OPS0329471,484.15,N,,N,N
Pendle Borough Council,Operational Services,Agency Staff,Emp : Agency Wages,1004,NW RECRUITMENT SERVICES LIMITED,A0091588,06/10/2022,OPS0328904,541.36,N,,N,N
Pendle Borough Council,Operational Services,Agency Staff,Emp : Agency Wages,1004,NW RECRUITMENT SERVICES LIMITED,A0091588,20/10/2022,OPS0329244,544.62,N,,N,N
Pendle Borough Council,Operational Services,Agency Staff,Emp : Agency Wages,1004,NW RECRUITMENT SERVICES LIMITED,A0091588,06/10/2022,OPS0328903,607.12,N,,N,N
Pendle Borough Council,Operational Services,Agency Staff,Emp : Agency Wages,1004,NW RECRUITMENT SERVICES LIMITED,A0091588,06/10/2022,OPS0328902,750.1,N,,N,N
Pendle Borough Council,Parks & Recreation Services,Premises Related Expense,Bldgs : R & M : Day To Day,2001,NW RECRUITMENT SERVICES LIMITED,A0091588,06/10/2022,PCO0328921,99.38,N,,N,N
Pendle Borough Council,Parks & Recreation Services,Premises Related Expense,Bldgs : R & M : Day To Day,2001,NW RECRUITMENT SERVICES LIMITED,A0091588,20/10/2022,PCO0329279,165.63,N,,N,N
Pendle Borough Council,Parks & Recreation Services,Supplies and Services,EFM : Other Equipment,4003,NW RECRUITMENT SERVICES LIMITED,A0091588,06/10/2022,PCO0328923,380.18,N,,N,N
Pendle Borough Council,Parks & Recreation Services,Supplies and Services,EFM : Other Equipment,4003,NW RECRUITMENT SERVICES LIMITED,A0091588,13/10/2022,PCO0329214,479.5,N,,N,N
Pendle Borough Council,Parks & Recreation Services,Supplies and Services,EFM : Other Equipment,4003,NW RECRUITMENT SERVICES LIMITED,A0091588,20/10/2022,PCO0329280,486.35,N,,N,N
Pendle Borough Council,Parks & Recreation Services,Supplies and Services,EFM : Other Equipment,4003,NW RECRUITMENT SERVICES LIMITED,A0091588,27/10/2022,PCO0329485,486.35,N,,N,N
Pendle Borough Council,Operational Services,Transport Related Expense,Tprt : Repairs : General,3105,GO PLANT FLEET SERVICES LIMITED,A0091600,06/10/2022,OPS0328989,183.24,N,,N,N
Pendle Borough Council,Operational Services,Transport Related Expense,Tprt : Repairs : General,3105,GO PLANT FLEET SERVICES LIMITED,A0091600,06/10/2022,OPS0328966,54.8,N,,N,N
Pendle Borough Council,Operational Services,Transport Related Expense,Tprt : Repairs : General,3105,GO PLANT FLEET SERVICES LIMITED,A0091600,06/10/2022,OPS0328965,100.8,N,,N,N
Pendle Borough Council,Operational Services,Transport Related Expense,Tprt : Repairs : General,3105,GO PLANT FLEET SERVICES LIMITED,A0091600,06/10/2022,OPS0328980,146.69,N,,N,N
Pendle Borough Council,Operational Services,Transport Related Expense,Tprt : Repairs : General,3105,GO PLANT FLEET SERVICES LIMITED,A0091600,27/10/2022,OPS0329358,100.8,N,,N,N
Pendle Borough Council,Operational Services,Transport Related Expense,Tprt : Repairs : General,3105,GO PLANT FLEET SERVICES LIMITED,A0091600,27/10/2022,OPS0329368,100.8,N,,N,N
Pendle Borough Council,Operational Services,Transport Related Expense,Tprt : Repairs : General,3105,GO PLANT FLEET SERVICES LIMITED,A0091600,06/10/2022,OPS0328964,100.8,N,,N,N
Pendle Borough Council,Operational Services,Transport Related Expense,Tprt : Repairs : General,3105,GO PLANT FLEET SERVICES LIMITED,A0091600,06/10/2022,OPS0328943,240.41,N,,N,N
Pendle Borough Council,Operational Services,Transport Related Expense,Tprt : Repairs : General,3105,GO PLANT FLEET SERVICES LIMITED,A0091600,27/10/2022,OPS0329359,54.8,N,,N,N
Pendle Borough Council,Operational Services,Transport Related Expense,Tprt : Repairs : General,3105,GO PLANT FLEET SERVICES LIMITED,A0091600,06/10/2022,OPS0328963,101.65,N,,N,N
Pendle Borough Council,Operational Services,Transport Related Expense,Tprt : Repairs : General,3105,GO PLANT FLEET SERVICES LIMITED,A0091600,06/10/2022,OPS0328953,121.1,N,,N,N
Pendle Borough Council,Operational Services,Transport Related Expense,Tprt : Repairs : General,3105,GO PLANT FLEET SERVICES LIMITED,A0091600,06/10/2022,OPS0328958,100.8,N,,N,N
Pendle Borough Council,Operational Services,Transport Related Expense,Tprt : Repairs : General,3105,GO PLANT FLEET SERVICES LIMITED,A0091600,06/10/2022,OPS0328977,857.7,N,,N,N
Pendle Borough Council,Operational Services,Transport Related Expense,Tprt : Repairs : General,3105,GO PLANT FLEET SERVICES LIMITED,A0091600,06/10/2022,OPS0328978,2223.96,N,,N,N
Pendle Borough Council,Operational Services,Transport Related Expense,Tprt : Repairs : General,3105,GO PLANT FLEET SERVICES LIMITED,A0091600,06/10/2022,OPS0328991,66.31,N,,N,N
Pendle Borough Council,Operational Services,Transport Related Expense,Tprt : Repairs : General,3105,GO PLANT FLEET SERVICES LIMITED,A0091600,06/10/2022,OPS0328952,100.8,N,,N,N
Pendle Borough Council,Operational Services,Transport Related Expense,Tprt : Repairs : General,3105,GO PLANT FLEET SERVICES LIMITED,A0091600,06/10/2022,OPS0328954,130.41,N,,N,N
Pendle Borough Council,Operational Services,Transport Related Expense,Tprt : Repairs : General,3105,GO PLANT FLEET SERVICES LIMITED,A0091600,06/10/2022,OPS0328944,77.34,N,,N,N
Pendle Borough Council,Operational Services,Transport Related Expense,Tprt : Repairs : General,3105,GO PLANT FLEET SERVICES LIMITED,A0091600,27/10/2022,OPS0329357,100.8,N,,N,N
Pendle Borough Council,Operational Services,Transport Related Expense,Tprt : Repairs : General,3105,GO PLANT FLEET SERVICES LIMITED,A0091600,27/10/2022,OPS0329363,205.5,N,,N,N
Pendle Borough Council,Operational Services,Transport Related Expense,Tprt : Repairs : General,3105,GO PLANT FLEET SERVICES LIMITED,A0091600,06/10/2022,OPS0328948,313.65,N,,N,N
Pendle Borough Council,Operational Services,Transport Related Expense,Tprt : Repairs : General,3105,GO PLANT FLEET SERVICES LIMITED,A0091600,06/10/2022,OPS0328988,99.39,N,,N,N
Pendle Borough Council,Operational Services,Transport Related Expense,Tprt : Repairs : General,3105,GO PLANT FLEET SERVICES LIMITED,A0091600,06/10/2022,OPS0328984,656.54,N,,N,N
Pendle Borough Council,Operational Services,Transport Related Expense,Tprt : Repairs : General,3105,GO PLANT FLEET SERVICES LIMITED,A0091600,06/10/2022,OPS0328993,74.04,N,,N,N
Pendle Borough Council,Operational Services,Transport Related Expense,Tprt : Repairs : General,3105,GO PLANT FLEET SERVICES LIMITED,A0091600,06/10/2022,OPS0328941,81.2,N,,N,N
Pendle Borough Council,Operational Services,Transport Related Expense,Tprt : Repairs : General,3105,GO PLANT FLEET SERVICES LIMITED,A0091600,06/10/2022,OPS0328986,74.04,N,,N,N
Pendle Borough Council,Operational Services,Transport Related Expense,Tprt : Repairs : General,3105,GO PLANT FLEET SERVICES LIMITED,A0091600,27/10/2022,OPS0329360,81.2,N,,N,N
Pendle Borough Council,Operational Services,Transport Related Expense,Tprt : Repairs : General,3105,GO PLANT FLEET SERVICES LIMITED,A0091600,06/10/2022,OPS0328992,181.05,N,,N,N
Pendle Borough Council,Operational Services,Transport Related Expense,Tprt : Repairs : General,3105,GO PLANT FLEET SERVICES LIMITED,A0091600,06/10/2022,OPS0328995,92.24,N,,N,N
Pendle Borough Council,Operational Services,Transport Related Expense,Tprt : Repairs : General,3105,GO PLANT FLEET SERVICES LIMITED,A0091600,06/10/2022,OPS0328985,275.96,N,,N,N
Pendle Borough Council,Operational Services,Transport Related Expense,Tprt : Repairs : General,3105,GO PLANT FLEET SERVICES LIMITED,A0091600,06/10/2022,OPS0328960,51.52,N,,N,N
Pendle Borough Council,Operational Services,Transport Related Expense,Tprt : Repairs : General,3105,GO PLANT FLEET SERVICES LIMITED,A0091600,27/10/2022,OPS0329361,152.74,N,,N,N
Pendle Borough Council,Operational Services,Transport Related Expense,Tprt : Repairs : General,3105,GO PLANT FLEET SERVICES LIMITED,A0091600,27/10/2022,OPS0329370,252.16,N,,N,N
Pendle Borough Council,Operational Services,Transport Related Expense,Tprt : Repairs : General,3105,GO PLANT FLEET SERVICES LIMITED,A0091600,27/10/2022,OPS0329367,14.75,N,,N,N
Pendle Borough Council,Operational Services,Transport Related Expense,Tyres,3204,GO PLANT FLEET SERVICES LIMITED,A0091600,06/10/2022,OPS0328983,323.02,N,,N,N
Pendle Borough Council,Operational Services,Transport Related Expense,Tyres,3204,GO PLANT FLEET SERVICES LIMITED,A0091600,27/10/2022,OPS0329368,646.05,N,,N,N
Pendle Borough Council,Operational Services,Transport Related Expense,Tyres,3204,GO PLANT FLEET SERVICES LIMITED,A0091600,06/10/2022,OPS0328942,625.75,N,,N,N
Pendle Borough Council,Operational Services,Transport Related Expense,Tyres,3204,GO PLANT FLEET SERVICES LIMITED,A0091600,06/10/2022,OPS0328978,428.08,N,,N,N
Pendle Borough Council,Operational Services,Transport Related Expense,Tyres,3204,GO PLANT FLEET SERVICES LIMITED,A0091600,06/10/2022,OPS0328949,265.48,N,,N,N
Pendle Borough Council,Operational Services,Transport Related Expense,Tyres,3204,GO PLANT FLEET SERVICES LIMITED,A0091600,27/10/2022,OPS0329356,110.43,N,,N,N
Pendle Borough Council,Operational Services,Transport Related Expense,Tyres,3204,GO PLANT FLEET SERVICES LIMITED,A0091600,27/10/2022,OPS0329369,113.54,N,,N,N
Pendle Borough Council,Operational Services,Transport Related Expense,Tyres,3204,GO PLANT FLEET SERVICES LIMITED,A0091600,06/10/2022,OPS0328951,115.67,N,,N,N
Pendle Borough Council,Operational Services,Transport Related Expense,Tyres,3204,GO PLANT FLEET SERVICES LIMITED,A0091600,06/10/2022,OPS0328994,221.17,N,,N,N
Pendle Borough Council,Operational Services,Transport Related Expense,Tyres,3204,GO PLANT FLEET SERVICES LIMITED,A0091600,06/10/2022,OPS0328950,106.49,N,,N,N
Pendle Borough Council,Operational Services,Transport Related Expense,Tyres,3204,GO PLANT FLEET SERVICES LIMITED,A0091600,06/10/2022,OPS0328957,108.21,N,,N,N
Pendle Borough Council,Operational Services,Transport Related Expense,Tyres,3204,GO PLANT FLEET SERVICES LIMITED,A0091600,06/10/2022,OPS0328961,115.66,N,,N,N
Pendle Borough Council,Operational Services,Transport Related Expense,Tyres,3204,GO PLANT FLEET SERVICES LIMITED,A0091600,06/10/2022,OPS0328956,108.21,N,,N,N
Pendle Borough Council,Operational Services,Transport Related Expense,Tyres,3204,GO PLANT FLEET SERVICES LIMITED,A0091600,27/10/2022,OPS0329366,100.5,N,,N,N
Pendle Borough Council,Operational Services,Transport Related Expense,Tyres,3204,GO PLANT FLEET SERVICES LIMITED,A0091600,06/10/2022,OPS0328955,116,N,,N,N
Pendle Borough Council,Operational Services,Transport Related Expense,Tyres,3204,GO PLANT FLEET SERVICES LIMITED,A0091600,27/10/2022,OPS0329365,242.01,N,,N,N
Pendle Borough Council,Operational Services,Transport Related Expense,Tyres,3204,GO PLANT FLEET SERVICES LIMITED,A0091600,06/10/2022,OPS0328981,252.16,N,,N,N
Pendle Borough Council,Operational Services,Transport Related Expense,Tyres,3204,GO PLANT FLEET SERVICES LIMITED,A0091600,06/10/2022,OPS0328940,38.78,N,,N,N
Pendle Borough Council,Operational Services,Transport Related Expense,Tyres,3204,GO PLANT FLEET SERVICES LIMITED,A0091600,06/10/2022,OPS0328945,126.08,N,,N,N
Pendle Borough Council,Operational Services,Transport Related Expense,Tyres,3204,GO PLANT FLEET SERVICES LIMITED,A0091600,06/10/2022,OPS0328947,126.08,N,,N,N
Pendle Borough Council,Operational Services,Transport Related Expense,Tyres,3204,GO PLANT FLEET SERVICES LIMITED,A0091600,06/10/2022,OPS0328959,252.16,N,,N,N
Pendle Borough Council,Operational Services,Transport Related Expense,Tyres,3204,GO PLANT FLEET SERVICES LIMITED,A0091600,06/10/2022,OPS0328982,120.85,N,,N,N
Pendle Borough Council,Operational Services,Transport Related Expense,Tyres,3204,GO PLANT FLEET SERVICES LIMITED,A0091600,27/10/2022,OPS0329362,126.08,N,,N,N
Pendle Borough Council,Operational Services,Transport Related Expense,Tyres,3204,GO PLANT FLEET SERVICES LIMITED,A0091600,06/10/2022,OPS0328946,52.03,N,,N,N
Pendle Borough Council,Operational Services,Transport Related Expense,Tyres,3204,GO PLANT FLEET SERVICES LIMITED,A0091600,06/10/2022,OPS0328939,103.19,N,,N,N
Pendle Borough Council,Operational Services,Transport Related Expense,Tyres,3204,GO PLANT FLEET SERVICES LIMITED,A0091600,06/10/2022,OPS0328962,126.08,N,,N,N
Pendle Borough Council,Operational Services,Transport Related Expense,Tyres,3204,GO PLANT FLEET SERVICES LIMITED,A0091600,06/10/2022,OPS0328979,10.15,N,,N,N
Pendle Borough Council,Operational Services,Transport Related Expense,Tprt : Annual Hire Charge,3601,GO PLANT FLEET SERVICES LIMITED,A0091600,06/10/2022,OPS0328987,420,N,,N,N
Pendle Borough Council,Operational Services,Transport Related Expense,Tprt : Annual Hire Charge,3601,GO PLANT FLEET SERVICES LIMITED,A0091600,06/10/2022,OPS0329074,3540.62,N,,N,N
Pendle Borough Council,Operational Services,Transport Related Expense,Tprt : Annual Hire Charge,3601,GO PLANT FLEET SERVICES LIMITED,A0091600,06/10/2022,OPS0329074,3540.62,N,,N,N
Pendle Borough Council,Operational Services,Transport Related Expense,Tprt : Annual Hire Charge,3601,GO PLANT FLEET SERVICES LIMITED,A0091600,06/10/2022,OPS0329074,3540.62,N,,N,N
Pendle Borough Council,Operational Services,Transport Related Expense,Tprt : Annual Hire Charge,3601,GO PLANT FLEET SERVICES LIMITED,A0091600,06/10/2022,OPS0329074,3540.62,N,,N,N
Pendle Borough Council,Operational Services,Transport Related Expense,Tprt : Annual Hire Charge,3601,GO PLANT FLEET SERVICES LIMITED,A0091600,06/10/2022,OPS0329074,3540.62,N,,N,N
Pendle Borough Council,Operational Services,Transport Related Expense,Tprt : Annual Hire Charge,3601,GO PLANT FLEET SERVICES LIMITED,A0091600,06/10/2022,OPS0329074,3344.64,N,,N,N
Pendle Borough Council,Operational Services,Transport Related Expense,Tprt : Annual Hire Charge,3601,GO PLANT FLEET SERVICES LIMITED,A0091600,27/10/2022,OPS0329364,200,N,,N,N
Pendle Borough Council,Operational Services,Transport Related Expense,Tprt : Annual Hire Charge,3601,GO PLANT FLEET SERVICES LIMITED,A0091600,06/10/2022,OPS0329074,3540.62,N,,N,N
Pendle Borough Council,Operational Services,Transport Related Expense,Tprt : Annual Hire Charge,3601,GO PLANT FLEET SERVICES LIMITED,A0091600,06/10/2022,OPS0329074,3540.62,N,,N,N
Pendle Borough Council,Operational Services,Transport Related Expense,Tprt : Annual Hire Charge,3601,GO PLANT FLEET SERVICES LIMITED,A0091600,06/10/2022,OPS0329074,3549.74,N,,N,N
Pendle Borough Council,Operational Services,Transport Related Expense,Tprt : Annual Hire Charge,3601,GO PLANT FLEET SERVICES LIMITED,A0091600,06/10/2022,OPS0329074,3549.74,N,,N,N
Pendle Borough Council,Operational Services,Transport Related Expense,Tprt : Annual Hire Charge,3601,GO PLANT FLEET SERVICES LIMITED,A0091600,06/10/2022,OPS0329074,3549.74,N,,N,N
Pendle Borough Council,Operational Services,Transport Related Expense,Tprt : Annual Hire Charge,3601,GO PLANT FLEET SERVICES LIMITED,A0091600,06/10/2022,OPS0329074,3497.07,N,,N,N
Pendle Borough Council,Operational Services,Transport Related Expense,Tprt : Annual Hire Charge,3601,GO PLANT FLEET SERVICES LIMITED,A0091600,06/10/2022,OPS0329074,3393,N,,N,N
Pendle Borough Council,Operational Services,Transport Related Expense,Tprt : Annual Hire Charge,3601,GO PLANT FLEET SERVICES LIMITED,A0091600,06/10/2022,OPS0329074,2654.17,N,,N,N
Pendle Borough Council,Operational Services,Transport Related Expense,Tprt : Annual Hire Charge,3601,GO PLANT FLEET SERVICES LIMITED,A0091600,06/10/2022,OPS0329074,1981.53,N,,N,N
Pendle Borough Council,Operational Services,Transport Related Expense,Tprt : Annual Hire Charge,3601,GO PLANT FLEET SERVICES LIMITED,A0091600,06/10/2022,OPS0329074,1981.53,N,,N,N
Pendle Borough Council,Operational Services,Transport Related Expense,Tprt : Annual Hire Charge,3601,GO PLANT FLEET SERVICES LIMITED,A0091600,06/10/2022,OPS0329074,1981.53,N,,N,N
Pendle Borough Council,Operational Services,Transport Related Expense,Tprt : Annual Hire Charge,3601,GO PLANT FLEET SERVICES LIMITED,A0091600,06/10/2022,OPS0329074,1981.53,N,,N,N
Pendle Borough Council,Operational Services,Transport Related Expense,Tprt : Annual Hire Charge,3601,GO PLANT FLEET SERVICES LIMITED,A0091600,06/10/2022,OPS0329074,1981.53,N,,N,N
Pendle Borough Council,Operational Services,Transport Related Expense,Tprt : Annual Hire Charge,3601,GO PLANT FLEET SERVICES LIMITED,A0091600,06/10/2022,OPS0329074,509.54,N,,N,N
Pendle Borough Council,Operational Services,Transport Related Expense,Tprt : Annual Hire Charge,3601,GO PLANT FLEET SERVICES LIMITED,A0091600,06/10/2022,OPS0329074,509.54,N,,N,N
Pendle Borough Council,Operational Services,Transport Related Expense,Tprt : Annual Hire Charge,3601,GO PLANT FLEET SERVICES LIMITED,A0091600,13/10/2022,OPS0329026,857.1,N,,N,N
Pendle Borough Council,Operational Services,Transport Related Expense,Tprt : Annual Hire Charge,3601,GO PLANT FLEET SERVICES LIMITED,A0091600,06/10/2022,OPS0329074,598.81,N,,N,N
Pendle Borough Council,Operational Services,Transport Related Expense,Tprt : Annual Hire Charge,3601,GO PLANT FLEET SERVICES LIMITED,A0091600,06/10/2022,OPS0329074,650,N,,N,N
Pendle Borough Council,Operational Services,Transport Related Expense,Tprt : Annual Hire Charge,3601,GO PLANT FLEET SERVICES LIMITED,A0091600,06/10/2022,OPS0329074,598.81,N,,N,N
Pendle Borough Council,Operational Services,Transport Related Expense,Tprt : Annual Hire Charge,3601,GO PLANT FLEET SERVICES LIMITED,A0091600,06/10/2022,OPS0329074,598.81,N,,N,N
Pendle Borough Council,Operational Services,Transport Related Expense,Tprt : Annual Hire Charge,3601,GO PLANT FLEET SERVICES LIMITED,A0091600,06/10/2022,OPS0329074,650,N,,N,N
Pendle Borough Council,Operational Services,Transport Related Expense,Tprt : Annual Hire Charge,3601,GO PLANT FLEET SERVICES LIMITED,A0091600,06/10/2022,OPS0329074,598.81,N,,N,N
Pendle Borough Council,Operational Services,Transport Related Expense,Tprt : Annual Hire Charge,3601,GO PLANT FLEET SERVICES LIMITED,A0091600,06/10/2022,OPS0329074,239.53,N,,N,N
Pendle Borough Council,Operational Services,Transport Related Expense,Tprt : Annual Hire Charge,3601,GO PLANT FLEET SERVICES LIMITED,A0091600,06/10/2022,OPS0329074,239.53,N,,N,N
Pendle Borough Council,Operational Services,Transport Related Expense,Tprt : Annual Hire Charge,3601,GO PLANT FLEET SERVICES LIMITED,A0091600,06/10/2022,OPS0329074,239.53,N,,N,N
Pendle Borough Council,Operational Services,Transport Related Expense,Tprt : Annual Hire Charge,3601,GO PLANT FLEET SERVICES LIMITED,A0091600,06/10/2022,OPS0329074,239.53,N,,N,N
Pendle Borough Council,Operational Services,Transport Related Expense,Tprt : Annual Hire Charge,3601,GO PLANT FLEET SERVICES LIMITED,A0091600,06/10/2022,OPS0329074,239.53,N,,N,N
Pendle Borough Council,Operational Services,Transport Related Expense,Tprt : Annual Hire Charge,3601,GO PLANT FLEET SERVICES LIMITED,A0091600,06/10/2022,OPS0329074,239.53,N,,N,N
Pendle Borough Council,Operational Services,Transport Related Expense,Tprt : Annual Hire Charge,3601,GO PLANT FLEET SERVICES LIMITED,A0091600,06/10/2022,OPS0329074,239.53,N,,N,N
Pendle Borough Council,Operational Services,Transport Related Expense,Tprt : Annual Hire Charge,3601,GO PLANT FLEET SERVICES LIMITED,A0091600,06/10/2022,OPS0329074,339.69,N,,N,N
Pendle Borough Council,Operational Services,Transport Related Expense,Tprt : Annual Hire Charge,3601,GO PLANT FLEET SERVICES LIMITED,A0091600,06/10/2022,OPS0329074,592.28,N,,N,N
Pendle Borough Council,Operational Services,Transport Related Expense,Tprt : Annual Hire Charge,3601,GO PLANT FLEET SERVICES LIMITED,A0091600,06/10/2022,OPS0329074,592.28,N,,N,N
Pendle Borough Council,Operational Services,Transport Related Expense,Tprt : Annual Hire Charge,3601,GO PLANT FLEET SERVICES LIMITED,A0091600,06/10/2022,OPS0329074,592.28,N,,N,N
Pendle Borough Council,Operational Services,Transport Related Expense,Tprt : Annual Hire Charge,3601,GO PLANT FLEET SERVICES LIMITED,A0091600,06/10/2022,OPS0329074,592.28,N,,N,N
Pendle Borough Council,Operational Services,Transport Related Expense,Tprt : Annual Hire Charge,3601,GO PLANT FLEET SERVICES LIMITED,A0091600,06/10/2022,OPS0329074,592.28,N,,N,N
Pendle Borough Council,Operational Services,Transport Related Expense,Tprt : Annual Hire Charge,3601,GO PLANT FLEET SERVICES LIMITED,A0091600,06/10/2022,OPS0329074,535.67,N,,N,N
Pendle Borough Council,Operational Services,Transport Related Expense,Tprt : Annual Hire Charge,3601,GO PLANT FLEET SERVICES LIMITED,A0091600,06/10/2022,OPS0329074,239.53,N,,N,N
Pendle Borough Council,Operational Services,Transport Related Expense,Tprt : Annual Hire Charge,3601,GO PLANT FLEET SERVICES LIMITED,A0091600,06/10/2022,OPS0328936,30,N,,N,N
Pendle Borough Council,Operational Services,Transport Related Expense,Tprt : Annual Hire Charge,3601,GO PLANT FLEET SERVICES LIMITED,A0091600,06/10/2022,OPS0329074,496.4,N,,N,N
Pendle Borough Council,Operational Services,Transport Related Expense,Tprt : Annual Hire Charge,3601,GO PLANT FLEET SERVICES LIMITED,A0091600,06/10/2022,OPS0328936,30,N,,N,N
Pendle Borough Council,Operational Services,Transport Related Expense,Tprt : Annual Hire Charge,3601,GO PLANT FLEET SERVICES LIMITED,A0091600,06/10/2022,OPS0329074,496.4,N,,N,N
Pendle Borough Council,Planning & Building Control,,Other Income : Non-VATable,9303,REDACT - PERSONAL DATA,A0091650,06/10/2022,PBC0328968,83.13,N,,N,N
Pendle Borough Council,Engineering & Special Projects,Premises Related Expense,Bldgs : R & M : Day To Day,2001,A&G LANDSCAPES & GROUNDWORKS LIMITED,A0091675,06/10/2022,HED0329006,245,N,,N,N
Pendle Borough Council,Engineering & Special Projects,Premises Related Expense,Bldgs : R & M : Day To Day,2001,A&G LANDSCAPES & GROUNDWORKS LIMITED,A0091675,06/10/2022,HED0329006,250,N,,N,50
Pendle Borough Council,Engineering & Special Projects,Premises Related Expense,Bldgs : R & M : Day To Day,2001,A&G LANDSCAPES & GROUNDWORKS LIMITED,A0091675,20/10/2022,HED0329351,8.33,N,,N,N
Pendle Borough Council,Engineering & Special Projects,Premises Related Expense,Bldgs : R & M : Day To Day,2001,A&G LANDSCAPES & GROUNDWORKS LIMITED,A0091675,20/10/2022,HED0329351,25,N,,N,5
Pendle Borough Council,Engineering & Special Projects,Premises Related Expense,Bldgs : R & M : Day To Day,2001,A&G LANDSCAPES & GROUNDWORKS LIMITED,A0091675,20/10/2022,HED0329352,8.33,N,,N,N
Pendle Borough Council,Engineering & Special Projects,Premises Related Expense,Bldgs : R & M : Day To Day,2001,A&G LANDSCAPES & GROUNDWORKS LIMITED,A0091675,20/10/2022,HED0329353,8.33,N,,N,N
Pendle Borough Council,Engineering & Special Projects,Premises Related Expense,Bldgs : R & M : Day To Day,2001,A&G LANDSCAPES & GROUNDWORKS LIMITED,A0091675,20/10/2022,HED0329352,25,N,,N,5
Pendle Borough Council,Engineering & Special Projects,Premises Related Expense,Bldgs : R & M : Day To Day,2001,A&G LANDSCAPES & GROUNDWORKS LIMITED,A0091675,20/10/2022,HED0329353,25,N,,N,5
Pendle Borough Council,Parks & Recreation Services,Premises Related Expense,Grounds : R & M : Day to Day : Routine,2101,A&G LANDSCAPES & GROUNDWORKS LIMITED,A0091675,06/10/2022,PCO0328905,38,N,,N,N
Pendle Borough Council,Parks & Recreation Services,Premises Related Expense,Grounds : R & M : Day to Day : Routine,2101,A&G LANDSCAPES & GROUNDWORKS LIMITED,A0091675,06/10/2022,PCO0328905,75,N,,N,15
Pendle Borough Council,Parks & Recreation Services,Premises Related Expense,Grounds : R & M : Day to Day : Routine,2101,A&G LANDSCAPES & GROUNDWORKS LIMITED,A0091675,13/10/2022,PCO0329197,250,N,,N,50
Pendle Borough Council,Parks & Recreation Services,Premises Related Expense,Grounds : R & M : Day to Day : Routine,2101,A&G LANDSCAPES & GROUNDWORKS LIMITED,A0091675,13/10/2022,PCO0329197,900,N,,N,N
Pendle Borough Council,Engineering & Special Projects,Premises Related Expense,Grounds : R & M : Day to Day : Routine,2101,A&G LANDSCAPES & GROUNDWORKS LIMITED,A0091675,20/10/2022,HED0329350,25,N,,N,5
Pendle Borough Council,Engineering & Special Projects,Premises Related Expense,Grounds : R & M : Day to Day : Routine,2101,A&G LANDSCAPES & GROUNDWORKS LIMITED,A0091675,20/10/2022,HED0329350,50,N,,N,N
Pendle Borough Council,Engineering & Special Projects,Premises Related Expense,Grounds : R & M : Day to Day : Routine,2101,A&G LANDSCAPES & GROUNDWORKS LIMITED,A0091675,06/10/2022,HED0329007,500,N,,N,100
Pendle Borough Council,Engineering & Special Projects,Premises Related Expense,Grounds : R & M : Day to Day : Routine,2101,A&G LANDSCAPES & GROUNDWORKS LIMITED,A0091675,06/10/2022,HED0329007,3125,N,,N,N
Pendle Borough Council,Engineering & Special Projects,Capital Costs,Capital : Payments,CD14,A&G LANDSCAPES & GROUNDWORKS LIMITED,A0091675,06/10/2022,HED0329008,300,N,,N,60
Pendle Borough Council,Engineering & Special Projects,Capital Costs,Capital : Payments,CD14,A&G LANDSCAPES & GROUNDWORKS LIMITED,A0091675,06/10/2022,HED0329008,615,N,,N,N
Pendle Borough Council,Planning & Building Control,,Other Income : Non-VATable,9303,REDACT - PERSONAL DATA,A0091743,06/10/2022,PBC0328974,33.25,N,,N,N
Pendle Borough Council,Engineering & Special Projects,Capital Costs,Ren Grant : 1996 Act,CH22,BRYAN LEE BUILDING CONTRACTORS LIMITED,A0091749,27/10/2022,HED0329456,593.59,N,,N,N
Pendle Borough Council,Engineering & Special Projects,Agency Staff,Emp : Agency Wages,1004,THE OYSTER PARTNERSHIP LIMITED,A0091781,20/10/2022,HED0329224,1323.14,N,,N,N
Pendle Borough Council,Environmental Health Services,Agency Staff,Emp : Agency Wages,1004,THE OYSTER PARTNERSHIP LIMITED,A0091781,13/10/2022,ENV0329090,1432.49,N,,N,N
Pendle Borough Council,Engineering & Special Projects,Agency Staff,Emp : Agency Wages,1004,THE OYSTER PARTNERSHIP LIMITED,A0091781,27/10/2022,HED0329414,1544.74,N,,N,N
Pendle Borough Council,Environmental Health Services,Agency Staff,Emp : Agency Wages,1004,THE OYSTER PARTNERSHIP LIMITED,A0091781,13/10/2022,ENV0329091,1549.24,N,,N,N
Pendle Borough Council,Engineering & Special Projects,Agency Staff,Emp : Agency Wages,1004,THE OYSTER PARTNERSHIP LIMITED,A0091781,20/10/2022,HED0329225,1558.75,N,,N,N
Pendle Borough Council,Engineering & Special Projects,Agency Staff,Emp : Agency Wages,1004,THE OYSTER PARTNERSHIP LIMITED,A0091781,20/10/2022,HED0329242,1739,N,,N,N
Pendle Borough Council,Engineering & Special Projects,Capital Costs,Capital : Salaries,CD13,G2 RECRUITMENT SOLUTIONS,A0091827,06/10/2022,HED0328999,1080,N,,N,N
Pendle Borough Council,Environmental Health Services,Capital Costs,Capital : Salaries,CD13,G2 RECRUITMENT SOLUTIONS,A0091827,13/10/2022,ENV0329092,1332,N,,N,N
Pendle Borough Council,Engineering & Special Projects,Capital Costs,Capital : Salaries,CD13,G2 RECRUITMENT SOLUTIONS,A0091827,27/10/2022,HED0329410,1332,N,,N,N
Pendle Borough Council,Engineering & Special Projects,Capital Costs,Capital : Payments,CD14,G2 RECRUITMENT SOLUTIONS,A0091827,20/10/2022,HED0329223,1332,N,,N,N
Pendle Borough Council,Engineering & Special Projects,Capital Costs,Ren Grant : 1996 Act,CH22,CLEGG CONSTRUCTION UK,A0091885,20/10/2022,HED0329262,4233.4,N,,N,N
Pendle Borough Council,Environmental Health Services,Capital Costs,Ren Grant : 1996 Act,CH22,CLEGG CONSTRUCTION UK,A0091885,06/10/2022,ENV0328933,6856.2,N,,N,N
Pendle Borough Council,Engineering & Special Projects,Premises Related Expense,Bldgs : R & M : Abnormal,2002,DYNAMIC PLUMBING AND HEATING,A0091941,20/10/2022,HED0329270,1650,N,,N,N
Pendle Borough Council,Engineering & Special Projects,Capital Costs,Ren Grant : 1996 Act,CH22,BUILDEASI NW LTD,A0091945,20/10/2022,HED0329269,21533.04,N,,N,N
Pendle Borough Council,Operational Services,,Stock : Purchases,PJ01,SMI GROUP UK,A0091999,20/10/2022,OPS0329287,312.62,N,,N,N
Pendle Borough Council,Human Resources,Indirect Employee Expenses,Emp : Medical Expenses,1236,FIONA SHARP PHYSIOTHERAPY,A0092384,06/10/2022,PER0328882,168,N,,N,N
Pendle Borough Council,Human Resources,Indirect Employee Expenses,Emp : Medical Expenses,1236,FIONA SHARP PHYSIOTHERAPY,A0092384,06/10/2022,PER0328883,168,N,,N,N
Pendle Borough Council,Human Resources,Indirect Employee Expenses,Emp : Medical Expenses,1236,FIONA SHARP PHYSIOTHERAPY,A0092384,13/10/2022,PER0329171,208,N,,N,N
Pendle Borough Council,Human Resources,Indirect Employee Expenses,Emp : Medical Expenses,1236,FIONA SHARP PHYSIOTHERAPY,A0092384,27/10/2022,PER0329441,248,N,,N,N
Pendle Borough Council,Environmental Health Services,Capital Costs,Ren Grant : 1996 Act,CH22,BLUEBELL NORTH WEST LIMITED,A0092759,06/10/2022,ENV0328874,4765.2,N,,N,N
Pendle Borough Council,Engineering & Special Projects,Capital Costs,Capital : Payments,CD14,REDACT - PERSONAL DATA,A0093702,20/10/2022,HED0329229,1648,N,,N,N
Pendle Borough Council,Engineering & Special Projects,Capital Costs,Ren Grant : 1996 Act,CH22,REDACT - PERSONAL DATA,A0093702,20/10/2022,HED0329261,1140,N,,N,N
Pendle Borough Council,Environmental Health Services,Capital Costs,Ren Grant : 1996 Act,CH22,REDACT - PERSONAL DATA,A0093702,13/10/2022,ENV0329128,5480,N,,N,N
Pendle Borough Council,Engineering & Special Projects,Capital Costs,Ren Grant : 1996 Act,CH22,REDACT - PERSONAL DATA,A0093702,20/10/2022,HED0329227,5793,N,,N,N
Pendle Borough Council,Operational Services,Supplies and Services,EFM Materials,4004,AMAZON PAYMENTS UK LIMITED,A0093876,13/10/2022,OPS0329160,12.45,N,,N,N
Pendle Borough Council,Operational Services,Supplies and Services,EFM Materials,4004,AMAZON PAYMENTS UK LIMITED,A0093876,13/10/2022,OPS0329161,43.28,N,,N,N
Pendle Borough Council,Operational Services,Supplies and Services,EFM Materials,4004,AMAZON PAYMENTS UK LIMITED,A0093876,13/10/2022,OPS0329162,49.8,N,,N,N
Pendle Borough Council,Operational Services,Supplies and Services,EFM Materials,4004,AMAZON PAYMENTS UK LIMITED,A0093876,13/10/2022,OPS0329159,73.17,N,,N,N
Pendle Borough Council,Operational Services,Supplies and Services,EFM Materials,4004,AMAZON PAYMENTS UK LIMITED,A0093876,13/10/2022,OPS0329158,89.43,N,,N,N
Pendle Borough Council,Operational Services,Supplies and Services,Printing & Stationery,4301,AMAZON PAYMENTS UK LIMITED,A0093876,13/10/2022,OPS0329157,5.83,N,,N,N
Pendle Borough Council,Parks & Recreation Services,Supplies and Services,Expenditure : Materials,0002,TURFIX PITCH SOLUTIONS,A0094206,20/10/2022,PCO0329284,813.1,N,,N,N
Pendle Borough Council,Parks & Recreation Services,Supplies and Services,Expenditure : Materials,0002,TURFIX PITCH SOLUTIONS,A0094206,13/10/2022,PCO0329218,209.4,N,,N,N
Pendle Borough Council,Revenues Services,Supplies and Services,Consultants Fees,4401,MARSTON (HOLDINGS) LIMITED,A0094273,20/10/2022,TRE0329372,3.6,N,,N,N
Pendle Borough Council,Revenues Services,Supplies and Services,Consultants Fees,4401,MARSTON (HOLDINGS) LIMITED,A0094273,20/10/2022,TRE0329373,3.6,N,,N,N
Pendle Borough Council,Revenues Services,Supplies and Services,Consultants Fees,4401,MARSTON (HOLDINGS) LIMITED,A0094273,20/10/2022,TRE0329374,3.6,N,,N,N
Pendle Borough Council,Revenues Services,Supplies and Services,Consultants Fees,4401,MARSTON (HOLDINGS) LIMITED,A0094273,20/10/2022,TRE0329375,3.6,N,,N,N
Pendle Borough Council,Revenues Services,Supplies and Services,Consultants Fees,4401,MARSTON (HOLDINGS) LIMITED,A0094273,27/10/2022,TRE0329491,54.09,N,,N,N
Pendle Borough Council,Environmental Health Services,Capital Costs,Ren Grant : 1996 Act,CH22,SOUTHFIELD CONSTRUCTION,A0094294,06/10/2022,ENV0328932,5752,N,,N,N
Pendle Borough Council,Engineering & Special Projects,Capital Costs,Ren Grant : 1996 Act,CH22,SOUTHFIELD CONSTRUCTION,A0094294,27/10/2022,HED0329454,7785,N,,N,N
Pendle Borough Council,Engineering & Special Projects,Capital Costs,Ren Grant : 1996 Act,CH22,SOUTHFIELD CONSTRUCTION,A0094294,20/10/2022,HED0329228,8304,N,,N,N
Pendle Borough Council,Parks & Recreation Services,Premises Related Expense,Grounds : R & M : Day to Day : Routine,2101,MERRITT & FRYERS LTD,A0095575,06/10/2022,PCO0328920,70.24,N,,N,N
Pendle Borough Council,Parks & Recreation Services,Premises Related Expense,Grounds : R & M : Day to Day : Routine,2101,MERRITT & FRYERS LTD,A0095575,06/10/2022,PCO0328919,96.99,N,,N,N
Pendle Borough Council,Engineering & Special Projects,Premises Related Expense,Grounds : R & M : Day to Day : Routine,2101,LOOP PUBLISHING LTD,A0095691,20/10/2022,HED0329348,125,N,,N,N
Pendle Borough Council,Planning & Building Control,,Other Income : Non-VATable,9303,REDACT - PERSONAL DATA,A0095754,13/10/2022,PBC0329136,99.75,N,,N,N
Pendle Borough Council,Parks & Recreation Services,Premises Related Expense,Grounds : R & M : Day to Day : Routine,2101,M W ENVIRONMENTAL,A0095862,27/10/2022,PCO0329484,326.18,N,,N,N
Pendle Borough Council,Financial Services,Capital Costs,Land Remediation Costs,CD22,COLNE DRAMATIC SOCIETY,A0095863,27/10/2022,AAS0329512,420,N,,N,N
Pendle Borough Council,Financial Services,Capital Costs,Capital: Design Fees,CD53,COLNE DRAMATIC SOCIETY,A0095863,27/10/2022,AAS0329512,280,N,,N,N
Pendle Borough Council,Financial Services,Capital Costs,Capital: Design Fees,CD53,COLNE DRAMATIC SOCIETY,A0095863,27/10/2022,AAS0329512,1188,N,,N,N
Pendle Borough Council,Financial Services,Capital Costs,Capital: Design Fees,CD53,COLNE DRAMATIC SOCIETY,A0095863,27/10/2022,AAS0329512,8280.2,N,,N,N
Pendle Borough Council,Planning & Building Control,,Other Income : Non-VATable,9303,REDACT - PERSONAL DATA,A0095865,06/10/2022,PBC0328969,49.88,N,,N,N
Pendle Borough Council,Planning & Building Control,,Other Income : Non-VATable,9303,REDACT - PERSONAL DATA,A0095915,13/10/2022,PBC0329133,66.5,N,,N,N
Pendle Borough Council,Planning & Building Control,,Other Income : Non-VATable,9303,REDACT - PERSONAL DATA,A0095951,13/10/2022,PBC0329137,176.61,N,,N,N
Pendle Borough Council,Engineering & Special Projects,Supplies and Services,Other Expenses,4705,COLNE YOUTH ACTION GROUP,A0096017,27/10/2022,HED0329447,630,N,,N,N
Pendle Borough Council,Engineering & Special Projects,Supplies and Services,Subsidised Training,4721,COLNE YOUTH ACTION GROUP,A0096017,27/10/2022,HED0329418,1120,N,,N,N
Pendle Borough Council,Engineering & Special Projects,Capital Costs,Capital : Payments,CD14,BREWERS CONTRACTORS,A0096143,27/10/2022,HED0329493,68761.5,N,,N,N
Pendle Borough Council,Planning & Building Control,,Other Income : Non-VATable,9303,REDACT - PERSONAL DATA,A0096248,06/10/2022,PBC0328970,83.12,N,,N,N
Pendle Borough Council,Chief Executives Policy Unit,Supplies and Services,Consultants Fees,4401,CAROL ELLOWOOD-CLARKE QPM,A0096266,13/10/2022,COR0329087,3750,N,,N,N
Pendle Borough Council,Planning & Building Control,Supplies and Services,EFM : Other Equipment,4003,REDACT - PERSONAL DATA,A0096322,27/10/2022,PBC0329489,66.5,N,,N,N
Pendle Borough Council,Operational Services,Agency Staff,Emp : Training : Courses,1013,ARMCO ASBESTOS CONSULTANTS LTD,A0096349,13/10/2022,OPS0329153,482.13,N,,N,N
Pendle Borough Council,Operational Services,Indirect Employee Expenses,Training,1211,ARMCO ASBESTOS CONSULTANTS LTD,A0096349,13/10/2022,OPS0329153,53.59,N,,N,N
Pendle Borough Council,Operational Services,Supplies and Services,Other Expenses,4705,ARMCO ASBESTOS CONSULTANTS LTD,A0096349,13/10/2022,OPS0329153,214.28,N,,N,N
Pendle Borough Council,Property Services,Premises Related Expense,Gas,2202,E.ON NEXT ENERGY LIMITED,A0096428,20/10/2022,EST0329312,9,N,,N,N
Pendle Borough Council,Property Services,Premises Related Expense,Gas,2202,E.ON NEXT ENERGY LIMITED,A0096428,20/10/2022,EST0329318,16.89,N,,N,N
Pendle Borough Council,Property Services,Premises Related Expense,Electricity,2203,E.ON NEXT ENERGY LIMITED,A0096428,20/10/2022,EST0329322,4.5,N,,N,N
Pendle Borough Council,Property Services,Premises Related Expense,Electricity,2203,E.ON NEXT ENERGY LIMITED,A0096428,20/10/2022,EST0329326,19.65,N,,N,N
Pendle Borough Council,Property Services,Premises Related Expense,Electricity,2203,E.ON NEXT ENERGY LIMITED,A0096428,20/10/2022,EST0329324,4.2,N,,N,N
Pendle Borough Council,Property Services,Premises Related Expense,Electricity,2203,E.ON NEXT ENERGY LIMITED,A0096428,20/10/2022,EST0329330,8.08,N,,N,N
Pendle Borough Council,Property Services,Premises Related Expense,Electricity,2203,E.ON NEXT ENERGY LIMITED,A0096428,20/10/2022,EST0329317,19.75,N,,N,N
Pendle Borough Council,Property Services,Premises Related Expense,Electricity,2203,E.ON NEXT ENERGY LIMITED,A0096428,13/10/2022,EST0329194,48.69,N,,N,N
Pendle Borough Council,Property Services,Premises Related Expense,Electricity,2203,E.ON NEXT ENERGY LIMITED,A0096428,20/10/2022,EST0329313,377.82,N,,N,N
Pendle Borough Council,Property Services,Premises Related Expense,Electricity,2203,E.ON NEXT ENERGY LIMITED,A0096428,13/10/2022,EST0329177,4.2,N,,N,N
Pendle Borough Council,Property Services,Premises Related Expense,Electricity,2203,E.ON NEXT ENERGY LIMITED,A0096428,13/10/2022,EST0329192,4.34,N,,N,N
Pendle Borough Council,Property Services,Premises Related Expense,Electricity,2203,E.ON NEXT ENERGY LIMITED,A0096428,13/10/2022,EST0329193,4.34,N,,N,N
Pendle Borough Council,Property Services,Premises Related Expense,Electricity,2203,E.ON NEXT ENERGY LIMITED,A0096428,13/10/2022,EST0329195,4.34,N,,N,N
Pendle Borough Council,Property Services,Premises Related Expense,Electricity,2203,E.ON NEXT ENERGY LIMITED,A0096428,20/10/2022,EST0329323,5.76,N,,N,N
Pendle Borough Council,Property Services,Premises Related Expense,Electricity,2203,E.ON NEXT ENERGY LIMITED,A0096428,20/10/2022,EST0329316,6.26,N,,N,N
Pendle Borough Council,Property Services,Premises Related Expense,Electricity,2203,E.ON NEXT ENERGY LIMITED,A0096428,20/10/2022,EST0329310,18.33,N,,N,N
Pendle Borough Council,Chief Executives Policy Unit,Supplies and Services,Subsidised Training,4721,SPORTSCOOL LTD,A0096429,13/10/2022,COR0329084,4123,N,,N,N
Pendle Borough Council,Parks & Recreation Services,Premises Related Expense,Grounds : R & M : Day to Day : Routine,2101,ABC CLEANING SERVICES (NORTH WEST) LIMITED,A0096473,27/10/2022,PCO0329475,160,N,,N,N
Pendle Borough Council,Parks & Recreation Services,Premises Related Expense,Grounds : R & M : Day to Day : Routine,2101,ABC CLEANING SERVICES (NORTH WEST) LIMITED,A0096473,27/10/2022,PCO0329475,895,N,,N,N
Pendle Borough Council,Parks & Recreation Services,Premises Related Expense,Grounds : R & M : Day to Day : Routine,2101,JMB SERVICES,A0096485,27/10/2022,PCO0329480,1230,N,,N,N
Pendle Borough Council,Parks & Recreation Services,Capital Costs,Capital : Payments,CD14,JMB SERVICES,A0096485,20/10/2022,PCO0329275,19500,N,,N,N
Pendle Borough Council,Chief Executives Policy Unit,Supplies and Services,Subsidised Training,4721,STANBURY COTTAGE MEALS SERVICE,A0096533,13/10/2022,COR0329086,4480,N,,N,N
Pendle Borough Council,Financial Services,Supplies and Services,Consultants Fees,4401,MBSP CONSULTANCY LTD,A0096552,06/10/2022,AAS0329083,7800,N,,N,N
Pendle Borough Council,Property Services,Premises Related Expense,Bldgs : R & M : Day To Day,2001,BEN SLATER GLAZING,A0096554,20/10/2022,EST0329306,240,N,,N,N
Pendle Borough Council,Property Services,Premises Related Expense,Bldgs : R & M : Day To Day,2001,BEN SLATER GLAZING,A0096554,20/10/2022,EST0329307,150,N,,N,N
Pendle Borough Council,Planning & Building Control,Supplies and Services,EFM : Other Equipment,4003,REDACT - PERSONAL DATA,A0096650,27/10/2022,PBC0329487,49.87,N,,N,N
Pendle Borough Council,Planning & Building Control,,Other Income : Non-VATable,9303,REDACT - PERSONAL DATA,A0096697,06/10/2022,PBC0328972,166.32,N,,N,N
Pendle Borough Council,Engineering & Special Projects,Supplies and Services,Other Expenses,4705,ALIGHT MEDIA,A0096760,27/10/2022,HED0329419,868,N,,N,N
Pendle Borough Council,Engineering & Special Projects,Supplies and Services,Subsidised Training,4721,ABSOLUTE FUTBOL LTD,A0096761,27/10/2022,HED0329420,7360,N,,N,N
Pendle Borough Council,Financial Services,Supplies and Services,Consultants Fees,4401,CASTLERIGG CONSULTING,A0096765,20/10/2022,AAS0329382,14950,N,,N,N
Pendle Borough Council,Engineering & Special Projects,Capital Costs,Ren Grant : 1996 Act,CH22,INDEPENDENT ADAPTIONS,A0096780,27/10/2022,HED0329415,4130,N,,N,N
Pendle Borough Council,Engineering & Special Projects,Capital Costs,Capital : Payments,CD14,EA PAYMENTS,A0096791,27/10/2022,HED0329494,204,N,,N,N
Pendle Borough Council,Engineering & Special Projects,Capital Costs,Capital : Payments,CD14,EA PAYMENTS,A0096791,06/10/2022,HED0329011,1079.5,N,,N,N
Pendle Borough Council,Financial Services,Supplies and Services,Grant Funding,4737,REDACT - PERSONAL DATA,A0096802,07/10/2022,AAS0329106,350,N,,N,N
Pendle Borough Council,Financial Services,Supplies and Services,Grant Funding,4737,REDACT - PERSONAL DATA,A0096802,07/10/2022,AAS0329107,350,N,,N,N
Pendle Borough Council,Financial Services,Supplies and Services,Grant Funding,4737,REDACT - PERSONAL DATA,A0096803,07/10/2022,AAS0329096,350,N,,N,N
Pendle Borough Council,Financial Services,Supplies and Services,Grant Funding,4737,REDACT - PERSONAL DATA,A0096804,07/10/2022,AAS0329097,350,N,,N,N
Pendle Borough Council,Financial Services,Supplies and Services,Grant Funding,4737,REDACT - PERSONAL DATA,A0096805,07/10/2022,AAS0329098,350,N,,N,N
Pendle Borough Council,Financial Services,Supplies and Services,Grant Funding,4737,REDACT - PERSONAL DATA,A0096806,07/10/2022,AAS0329099,350,N,,N,N
Pendle Borough Council,Financial Services,Supplies and Services,Grant Funding,4737,REDACT - PERSONAL DATA,A0096807,07/10/2022,AAS0329100,350,N,,N,N
Pendle Borough Council,Financial Services,Supplies and Services,Grant Funding,4737,REDACT - PERSONAL DATA,A0096808,07/10/2022,AAS0329104,350,N,,N,N
Pendle Borough Council,Financial Services,Supplies and Services,Grant Funding,4737,REDACT - PERSONAL DATA,A0096810,07/10/2022,AAS0329108,350,N,,N,N
Pendle Borough Council,Financial Services,Supplies and Services,Grant Funding,4737,REDACT - PERSONAL DATA,A0096811,07/10/2022,AAS0329109,350,N,,N,N
Pendle Borough Council,Financial Services,Supplies and Services,Grant Funding,4737,REDACT - PERSONAL DATA,A0096812,07/10/2022,AAS0329111,350,N,,N,N
Pendle Borough Council,Financial Services,Supplies and Services,Grant Funding,4737,REDACT - PERSONAL DATA,A0096812,07/10/2022,AAS0329112,350,N,,N,N
Pendle Borough Council,Financial Services,Supplies and Services,Grant Funding,4737,REDACT - PERSONAL DATA,A0096819,07/10/2022,AAS0329110,350,N,,N,N
Pendle Borough Council,Financial Services,Supplies and Services,Grant Funding,4737,REDACT - PERSONAL DATA,A0096823,07/10/2022,AAS0329102,350,N,,N,N
Pendle Borough Council,Financial Services,Supplies and Services,Grant Funding,4737,REDACT - PERSONAL DATA,A0096834,07/10/2022,AAS0329101,350,N,,N,N
Pendle Borough Council,Financial Services,Supplies and Services,Grant Funding,4737,REDACT - PERSONAL DATA,A0096837,07/10/2022,AAS0329105,350,N,,N,N
Pendle Borough Council,Financial Services,Supplies and Services,Grant Funding,4737,REDACT - PERSONAL DATA,A0096841,07/10/2022,AAS0329113,350,N,,N,N
Pendle Borough Council,Financial Services,Supplies and Services,Grant Funding,4737,POST OFFICE LTD,A0096844,20/10/2022,AAS0329380,307.2,N,,N,N
Pendle Borough Council,Operational Services,Indirect Employee Expenses,Training,1211,AEBI SCHMIDT UK LTD,A0096847,13/10/2022,OPS0329152,108,N,,N,N
Pendle Borough Council,Operational Services,Indirect Employee Expenses,Training,1211,AEBI SCHMIDT UK LTD,A0096847,13/10/2022,OPS0329152,800,N,,N,N
Pendle Borough Council,Engineering & Special Projects,Capital Costs,Capital : Payments,CD14,MABEY HIRE,A0096855,06/10/2022,HED0329004,1764,N,,N,N
Pendle Borough Council,Financial Services,Supplies and Services,Grant Funding,4737,REDACT - PERSONAL DATA,A0096858,07/10/2022,AAS0329114,350,N,,N,N
Pendle Borough Council,Financial Services,Supplies and Services,Grant Funding,4737,REDACT - PERSONAL DATA,A0096862,07/10/2022,AAS0329115,350,N,,N,N
Pendle Borough Council,Financial Services,Supplies and Services,Grant Funding,4737,REDACT - PERSONAL DATA,A0096863,07/10/2022,AAS0329103,350,N,,N,N
Pendle Borough Council,Parks & Recreation Services,Premises Related Expense,Bldgs : R & M : Day To Day,2001,M & T SMITH,A0096864,20/10/2022,PCO0329278,490,N,,N,N
Pendle Borough Council,Financial Services,Supplies and Services,Grant Funding,4737,REDACT - PERSONAL DATA,A0096866,07/10/2022,AAS0329117,350,N,,N,N
Pendle Borough Council,Financial Services,Supplies and Services,Grant Funding,4737,REDACT - PERSONAL DATA,A0096867,07/10/2022,AAS0329116,350,N,,N,N
Pendle Borough Council,Financial Services,Supplies and Services,Grant Funding,4737,REDACT - PERSONAL DATA,A0096872,07/10/2022,AAS0329118,350,N,,N,N
Pendle Borough Council,Financial Services,Supplies and Services,Grant Funding,4737,REDACT - PERSONAL DATA,A0096872,07/10/2022,AAS0329119,350,N,,N,N
Pendle Borough Council,Financial Services,Supplies and Services,Grant Funding,4737,REDACT - PERSONAL DATA,A0096872,07/10/2022,AAS0329120,350,N,,N,N
Pendle Borough Council,Parks & Recreation Services,Supplies and Services,EFM : Other Equipment,4003,UP TO SPEED TRAINNG,A0096883,20/10/2022,PCO0329283,930,N,,N,N
Pendle Borough Council,Parks & Recreation Services,Supplies and Services,EFM : Other Equipment,4003,UP TO SPEED TRAINNG,A0096883,20/10/2022,PCO0329282,1110,N,,N,N
Pendle Borough Council,Engineering & Special Projects,Capital Costs,Ren Grant : 1996 Act,CH22,REDACT - PERSONAL DATA,A0096886,06/10/2022,HED0329002,677.73,N,,N,N
Pendle Borough Council,Planning & Building Control,,Other Income : Non-VATable,9303,REDACT - PERSONAL DATA,A0096887,06/10/2022,PBC0328971,83.13,N,,N,N
Pendle Borough Council,Engineering & Special Projects,Capital Costs,Capital : Payments,CD14,BRIERFIELD CHILDRENS COMMUNITY ALLOTMENT,A0096888,06/10/2022,HED0328888,1000,N,,N,N
Pendle Borough Council,Parks & Recreation Services,Supplies and Services,Printing & Stationery,4301,COMPUTER DISPOSALS LTD,A0096889,13/10/2022,PCO0329202,150,N,,N,N
Pendle Borough Council,Financial Services,Supplies and Services,Grant Funding,4737,REDACT - PERSONAL DATA,A0096890,07/10/2022,AAS0329121,350,N,,N,N
Pendle Borough Council,Financial Services,Supplies and Services,Grant Funding,4737,REDACT - PERSONAL DATA,A0096890,07/10/2022,AAS0329122,350,N,,N,N
Pendle Borough Council,Financial Services,Supplies and Services,Grant Funding,4737,REDACT - PERSONAL DATA,A0096890,07/10/2022,AAS0329123,350,N,,N,N
Pendle Borough Council,Financial Services,Supplies and Services,Grant Funding,4737,REDACT - PERSONAL DATA,A0096893,07/10/2022,AAS0329124,350,N,,N,N
Pendle Borough Council,Financial Services,Supplies and Services,Grant Funding,4737,REDACT - PERSONAL DATA,A0096893,07/10/2022,AAS0329125,350,N,,N,N
Pendle Borough Council,Financial Services,,Paid in the Year,pd03,RDG FOULRIDGE PROPERTIES LTD,A0096894,13/10/2022,AAS0329221,1627.5,N,,N,N
Pendle Borough Council,Planning & Building Control,,Other Income : Non-VATable,9303,REDACT - PERSONAL DATA,A0096895,13/10/2022,PBC0329134,29.9,N,,N,N
Pendle Borough Council,Planning & Building Control,,Other Income : Non-VATable,9303,REDACT - PERSONAL DATA,A0096896,13/10/2022,PBC0329135,87.18,N,,N,N
Pendle Borough Council,Planning & Building Control,,Other Income : Non-VATable,9303,REDACT - PERSONAL DATA,A0096896,20/10/2022,PBC0329291,174.37,N,,N,N
Pendle Borough Council,Human Resources,Indirect Employee Expenses,Recruitment,1221,NAVIGATE NDC,A0096897,13/10/2022,PER0329168,7160,N,,N,N
Pendle Borough Council,Operational Services,Transport Related Expense,Tprt : Repairs : General,3105,REDACT - PERSONAL DATA,A0096898,20/10/2022,OPS0329290,24.99,N,,N,N
Pendle Borough Council,Planning & Building Control,,Other Income : Non-VATable,9303,REDACT - PERSONAL DATA,A0096900,20/10/2022,PBC0329292,29.9,N,,N,N
Pendle Borough Council,Engineering & Special Projects,Supplies and Services,Subscriptions & Donations,4706,MONSIDO LTD,A0096901,20/10/2022,HED0329235,5288,N,,N,N
Pendle Borough Council,Engineering & Special Projects,,Other Income : Non-VATable,9303,ZOOLAB UK LTD,A0096902,20/10/2022,HED0329239,131,N,,N,N
Pendle Borough Council,Operational Services,Supplies and Services,EFM : Other Equipment,4003,REDACT - PERSONAL DATA,A0096905,27/10/2022,OPS0329469,72,N,,N,N
Pendle Borough Council,Financial Services,Supplies and Services,Other Expenses,4705,IWP INC,A0096906,27/10/2022,AAS0329514,9950,N,,N,N
Pendle Borough Council,Engineering & Special Projects,Supplies and Services,Other Expenses,4705,OWAIS PROPERTIES,A0096907,27/10/2022,HED0329445,500,N,,N,N
Pendle Borough Council,Planning & Building Control,Supplies and Services,EFM : Other Equipment,4003,REDACT - PERSONAL DATA,A0096908,27/10/2022,PBC0329490,29.9,N,,N,N
Pendle Borough Council,Financial Services,,Cash : Payroll Advances,pb03,REDACT - PERSONAL DATA,A0096925,17/10/2022,AAS0329833,1419.19,N,,N,N
